{"text_format":"1","workbook":"xlsx","n_sheets":5,"sheets":["Definicion","Catalogos","Trabajadores","Plantilla","Plantilla (Original)"],"not_rendered":{"charts":0,"images":0,"macros":1,"external_links":0,"defined_names":31,"comments":0,"pivot_tables":0},"unopened":[],"bounds":{"document_bytes":16777216,"sheet_cells":100000,"rows_first":2000,"rows_last":500,"rows_between":2000,"halvings":0,"cell_chars":16384,"cell_head_chars":4096},"cells_cut":0,"cells_raw":0,"read":"whole","date_system":"1900"}

{"sheet":"Definicion","index":0,"n_rows":58,"n_cols":14,"rows_kept":58,"cut":false,"hidden":false,"merged":[[0,11,0,13],[46,0,46,6],[41,0,41,6],[37,0,37,6],[31,0,31,6],[25,0,25,6]]}
["Nº CAMPO","NOMBRE","TIPO","LONGITUD MÁXIMA","OBLIGATORIO","VALORES ACEPTADOS","FORMATO PARA SALIDA",null,null,null,null,"Consideraciones para el formato de salida"]
[1,"RFC DEL EMISOR","ALFANUMERICO",13,"SI",null,null,null,null,null,null,"Datos","Formato","Descripcion"]
[{"$f":"A2+1","v":2},"Nº FOLIO INTERNO DE RECIBO","NUMÉRICO",6,"SI",null,null,null,null,null,null,"NUMÉRICO","Vacio","no se modifica nada"]
[{"$f":"A3+1","v":3}," VERSION ","ALFANUMERICO",3,"SI",1.1000000000000001,null,null,null,null,null,"NUMÉRICO","Entero . Decimal","con punto rellena ceros a la izquierda, pone punto y rellena a N decimales a la derecha"]
[4,"REGISTRO PATRONAL","ALFANUMERICO",20,"NO",null,null,null,null,null,null,"NUMÉRICO","Entero , Decimal","con coma, pone punto y rellena a N decimales a la derecha"]
[5,"CÓDIGO EMPLEADO","ALFANUMERICO",8,"SI"]
[6,"CURP","ALFANUMERICO",18,"SI"]
[7,"CÓDIGO TIPO DE RÉGIMEN","NUMÉRICO",1,"SI","SEGÚN CATALGO SAT"]
[8,"NSS IMSS","ALFANUMERICO",15,"NO"]
[9,"FECHA DE PAGO","FECHA",10,"SI","AAAA-MM-DD"]
[10,"FECHA INICIAL PERIODO DE NOMINA","FECHA",10,"SI","AAAA-MM-DD"]
[11,"FECHA FINAL PERIODO DE NOMINA","FECHA",10,"SI","AAAA-MM-DD"]
[12,"NUMERO DE DIAS PAGADOS","NUMÉRICO",3,"SI"]
[13,"DEPARTAMENTO","ALFANUMERICO",25,"NO"]
[14,"CLABE INTERBANCARIA","ALFANUMERICO",18,"NO","DE LA CUENTA DEL EMPLEADO"]
[15,"CÓDIGO DE BANCO","ALFANUMERICO",3,"NO","SEGÚN CATALGO SAT"]
[16,"FECHA INICIO RELACIÓN LABORAL","FECHA",10,"NO","AAAA-MM-DD"]
[17,"Nº SEMANAS ANTIGÜEDAD","NUMÉRICO",4,"NO"]
[18,"PUESTO","ALFANUMERICO",25,"NO"]
[19,"TIPO DE CONTRATO","ALFANUMERICO",25,"NO"]
[20,"TIPO DE JORNADA","ALFANUMERICO",25,"NO"]
[21,"PERIODICIDAD DEL PAGO","ALFANUMERICO",25,"SI","SEMANAL, QUINCENAL"]
[22,"SALARIO BASE","NUMÉRICO","9 ENTEROS, 2 DECIMALES","NO","Retribución otorgada al trabajador que se integra por los pagos hechos en efectivo por cuota diaria, gratificaciones, percepciones, alimentación, habitación, primas,comisiones,prestaciones en especie, y cualquier otra cantidad que se le entregue al trabajador por su trabajo",9.1999999999999993]
[23,"CÓDIGO RIESGO","NUMÉRICO",1,"NO","SEGÚN CATALGO SAT"]
[24,"SALARIO DIARIO INTEGRADO","NUMÉRICO","9 ENTEROS, 2 DECIMALES","NO",null,"9,2"]
["PERCEPCIONES (OCURRE 12 VECES)"]
[{"$f":"A25+1","v":25},"CÓDIGO PERCEPCIÓN SAT","NUMÉRICO",3,"SI","SEGÚN CATALGO SAT"]
[{"$f":"A27+1","v":26},"CÓDIGO PERCEPCIÓN INTERNO","NUMÉRICO",3,"SI"]
[{"$f":"A28+1","v":27},"CONCEPTO PERCEPCIÓN","ALFANUMERICO",28,"SI"]
[28,"MONTO DE LA PERCEPCIÓN GRAVABLE","NUMÉRICO","9 ENTEROS, 2 DECIMALES","SI",null,"9,2"]
[29,"MONTO DE LA PERCEPCIÓN EXENTA","NUMÉRICO","9 ENTEROS, 2 DECIMALES","SI",null,"9,2"]
["DEDUCCIONES (OCURRE 12 VECES)"]
[{"$f":"A31+1","v":30},"CÓDIGO DEDUCCIÓN SAT","NUMÉRICO",3,"SI","SEGÚN CATALGO SAT"]
[{"$f":"A33+1","v":31},"CÓDIGO DEDUCCIÓN INTERNO","NUMÉRICO",3,"SI"]
[{"$f":"A34+1","v":32},"CONCEPTO DEDUCCIÓN","ALFANUMERICO",28,"SI"]
[33,"MONTO DE LA DEDUCCIÓN GRAVABLE","NUMÉRICO","9 ENTEROS, 2 DECIMALES","SI",null,"9.2"]
[34,"MONTO DE LA DEDUCCIÓN EXENTA","NUMÉRICO","9 ENTEROS, 2 DECIMALES","SI",null,"9.2"]
["INCAPACIDADES (OCURRE 3 VECES)"]
[{"$f":"A37+1","v":35},"Nº DIAS DE INCAPACIDAD","NUMÉRICO",4,"NO"]
[{"$f":"A39+1","v":36},"CÓDIGO TIPO INCAPACIDAD","NUMÉRICO",1,"NO","SEGÚN CATALGO SAT"]
[{"$f":"A40+1","v":37},"MONTO INCAPACIDAD","NUMÉRICO","9 ENTEROS, 2 DECIMALES","NO",null,"9,2"]
["TIEMPO EXTRA (OCURRE 2 VECES)"]
[{"$f":"A41+1","v":38},"Nº DIAS QUE EL TRABAJOR REALIZÓ HRS EXTRAS","NUMÉRICO",4,"NO"]
[{"$f":"A43+1","v":39},"TIPO DE HORAS EXTRAS","ALFANUMERICO",7,"NO","DOBLES O TRIPLES"]
[{"$f":"A44+1","v":40},"Nº HORAS EXTRAS","NUMÉRICO",4,"NO"]
[{"$f":"A45+1","v":41},"MONTO TIEMPO EXTRA","NUMÉRICO","9 ENTEROS, 2 DECIMALES","NO",null,"9,2"]
["DATOS DEL EMPLEADO"]
[{"$f":"A46+1","v":42},"NOMBRE","ALFANUMERICO",36,"SI"]
[{"$f":"A48+1","v":43},"RFC DEL RECEPTOR","ALFANUMERICO",13,"SI"]
[{"$f":"A49+1","v":44},"CÓDIGO POSTAL DOMICILIO","NUMÉRICO",5,"SI"]
[45,"PAIS","ALFANUMERICO",6,"SI","MEXICO"]
[46,"Nº NÓMINA","ALFANUMERICO",3,"SI","EJ. QUINCENA 21 -> '21' O SEMANA 32 -> '32'"]
[47,"EMAIL 1","ALFANUMERICO",70,"NO","ejemplo rh@empresa.com.mx"]
[48,"EMAIL 2","ALFANUMERICO",70,"NO","ejemplo trabajador@empresa.com.mx"]
[49,"MÉTODO DE PAGO","NUMÉRICO",2,"NO","SEGÚN CATALGO SAT PREDETERMINADO 99"]
[50,"NÚMERO DE CUENTA","NUMÉRICO",4,"NO"]
[]
[null,null,null,null,null,null," "]

{"sheet":"Catalogos","index":1,"n_rows":96,"n_cols":40,"rows_kept":96,"cut":false,"hidden":false,"merged":[[1,34,1,35]]}
[]
["Emisores",null,null,null,null,null,null,"Régimen de Contratación del Trabajador",null,null,"Catálogo de Bancos",null,null,null,"Riesgo de Puesto",null,null,"Tipo Percepción",null,null,null,"Tipo Deducción",null,null,null,"Tipo Incapacidad",null,null,"Periodos de Nómina",null,null,null,null,null,"Configuracion para grabar archivo"]
["RFC DEL EMISOR"," VERSION ","REGISTRO PATRONAL","CÓDIGO RIESGO","PERIODICIDAD DEL PAGO","PERIODO DE NOMINA",null,"CÓDIGO TIPO DE RÉGIMEN","Descripción",null,"CÓDIGO DE BANCO","Nombre corto","Nombre o razón social",null,"CÓDIGO RIESGO","Descripción",null,"CÓDIGO PERCEPCIÓN SAT","CONCEPTO PERCEPCIÓN","CÓDIGO PERCEPCIÓN INTERNO",null,"CÓDIGO DEDUCCIÓN SAT","CONCEPTO DEDUCCIÓN","CÓDIGO DEDUCCIÓN INTERNO",null,"CÓDIGO TIPO INCAPACIDAD","Descripcion",null,"CODIGO NOMINA","FECHA DE PAGO","FECHA INICIAL PERIODO DE NOMINA","FECHA FINAL PERIODO DE NOMINA",null,null,"Descripción ","Valor",null,null,"Primera celda","A3"]
["XAXX010101000",1.1000000000000001,"A9990009900","1|Clase I","Semanal",1,null,"02| Sueldos y salarios","Sueldos y salarios",null,"002|BANAMEX","BANAMEX","Banco Nacional de México, S.A., Institución de Banca Múltiple, Grupo Financiero Banamex",null,"1|Clase I","Clase I",null,"001|Sueldos, Salarios Rayas y Jornales","Sueldos, Salarios Rayas y Jornales",1,null,"001|Seguridad social","Seguridad social",1,null,"1|Riesgo de trabajo","Riesgo de trabajo",null,1,{"$f":"AF4+5","v":"2016-01-15"},"2016-01-04","2016-01-10",null,null,"Ruta a guardar el archivo txt (Terminar con diagonal  \\)","C:\\NOMINA\\",null,null,"Ultima Celda","FL21"]
[null,null,null,null,null,null,null,"03|Jubilados","Jubilados",null,"006|BANCOMEXT","BANCOMEXT","Banco Nacional de Comercio Exterior, Sociedad Nacional de Crédito, Institución de Banca de Desarrollo",null,"2| Clase II","Clase II ",null,"002|Gratificación Anual (Aguinaldo)","Gratificación Anual (Aguinaldo)",2,null,"002|ISR","ISR",2,null,"2|Enfermedad en general","Enfermedad en general",null,2,{"$f":"AF5+5","v":"2016-01-22"},{"$f":"AF4+1","v":"2016-01-11"},{"$f":"AE5+6","v":"2016-01-17"},null,null,"Nombre del archivo (con extension)","PRUEBA.txt",null,null,"RANGO",{"$f":"RANGOPRIMERACELDA&\":\"&RANGOULTIMACELDA","v":"A3:FL21"}]
["Catalogo Metodos de Pago",null,null,null,null,null,null,"04|Pensionados","Pensionados",null,"009|BANOBRAS","BANOBRAS","Banco Nacional de Obras y Servicios Públicos, Sociedad Nacional de Crédito, Institución de Banca de Desarrollo",null,"3| Clase III","Clase III",null,"003|Participación de los Trabajadores en las Utilidades PTU","Participación de los Trabajadores en las Utilidades PTU",3,null,"003|Aportaciones a retiro, cesantía en edad avanzada y vejez.","Aportaciones a retiro, cesantía en edad avanzada y vejez.",3,null,"3|Maternidad","Maternidad",null,3,{"$f":"AF6+5","v":"2016-01-29"},{"$f":"AF5+1","v":"2016-01-18"},{"$f":"AE6+6","v":"2016-01-24"},null,null,"Nombre de la pestaña a exportar","Plantilla"]
["CLAVE","METODO DE PAGO",null,null,null,null,null,"05|Asimilados a salarios, Miembros de las Sociedades Cooperativas de Producción.","Asimilados a salarios, Miembros de las Sociedades Cooperativas de Producción.",null,"012|BBVA BANCOMER","BBVA BANCOMER","BBVA Bancomer, S.A., Institución de Banca Múltiple, Grupo Financiero BBVA Bancomer",null,"4| Clase IV ","Clase IV",null,"004|Reembolso de Gastos Médicos Dentales y Hospitalarios","Reembolso de Gastos Médicos Dentales y Hospitalarios",4,null,"004|Otros","Otros",4,null,null,null,null,4,"2016-02-05","2016-01-25","2016-01-31",null,null,"Primera Columna de Encabezados","A2"]
["01","Efectivo",null,null,null,null,null,"06|Asimilados a salarios, Integrantes de Sociedades y Asociaciones Civiles","Asimilados a salarios, Integrantes de Sociedades y Asociaciones Civiles",null,"014|SANTANDER","SANTANDER","Banco Santander (México), S.A., Institución de Banca Múltiple, Grupo Financiero Santander",null,"5| Clase V","Clase V",null,"005|Fondo de Ahorro","Fondo de Ahorro",5,null,"005|Aportaciones a Fondo de vivienda","Aportaciones a Fondo de vivienda",5,null,null,null,null,5,"2016-02-12","2016-02-01","2016-02-07"]
["02","Cheque nominativo",null,null,null,null,null,"07|Asimilados a salarios, Miembros de consejos directivos, de vigilancia, consultivos, honorarios a administradores, comisarios y gerentes generales.","Asimilados a salarios, Miembros de consejos directivos, de vigilancia, consultivos, honorarios a administradores, comisarios y gerentes generales.",null,"019|BANJERCITO","BANJERCITO","Banco Nacional del Ejército, Fuerza Aérea y Armada, Sociedad Nacional de Crédito, Institución de Banca de Desarrollo",null,null,null,null,"006|Caja de ahorro","Caja de ahorro",6,null,"006|Descuento por incapacidad","Descuento por incapacidad",6,null,null,null,null,6,"2016-02-19","2016-02-08","2016-02-14"]
["03","Transferencia electrónica de fondos",null,null,null,null,null,"08|Asimilados a salarios, Actividad empresarial (comisionistas)","Asimilados a salarios, Actividad empresarial (comisionistas)",null,"021|HSBC","HSBC","HSBC México, S.A., institución De Banca Múltiple, Grupo Financiero HSBC",null,null,null,null,"009|Contribuciones a Cargo del Trabajador Pagadas por el Patrón","Contribuciones a Cargo del Trabajador Pagadas por el Patrón",7,null,"007|Pensión alimenticia","Pensión alimenticia",7,null,null,null,null,7,"2016-02-26","2016-02-15","2016-02-21"]
["04","Tarjeta de credito",null,null,null,null,null,"09|Asimilados a salarios, Honorarios asimilados a salarios","Asimilados a salarios, Honorarios asimilados a salarios",null,"022|GE MONEY","GE MONEY","GE Money Bank, S.A.",null,null,null,null,"010|Premios por puntualidad","Premios por puntualidad",8,null,"008|Renta","Renta",8,null,null,null,null,8,"2016-03-04","2016-02-22","2016-02-28"]
["05","Monedero electrónico",null,null,null,null,null,"10|Asimilados a salarios, Ingresos acciones o títulos valor","Asimilados a salarios, Ingresos acciones o títulos valor",null,"030|BAJIO","BAJIO","Banco del Bajío, S.A., Institución de Banca Múltiple Clave Descripción",null,null,null,null,"011|Prima de Seguro de vida","Prima de Seguro de vida",9,null,"009|Préstamos provenientes del Fondo Nacional de la Vivienda para los Trabajadores","Préstamos provenientes del Fondo Nacional de la Vivienda para los Trabajadores",9,null,null,null,null,9,"2016-03-11","2016-02-29","2016-03-06"]
["06","Dinero electrónico",null,null,null,null,null,null,null,null,"032|IXE","IXE","IXE Banco, S.A., Institución de Banca Múltiple, IXE Grupo Financiero",null,null,null,null,"012|Seguro de Gastos Médicos Mayores","Seguro de Gastos Médicos Mayores",10,null,"010|Pago por crédito de vivienda","Pago por crédito de vivienda",10,null,null,null,null,10,"2016-03-18","2016-03-07","2016-03-13"]
["08","Vales de despensa",null,null,null,null,null,null,null,null,"036|INBURSA","INBURSA","Banco Inbursa, S.A., Institución de Banca Múltiple, Grupo Financiero Inbursa",null,null,null,null,"013|Cuotas Sindicales Pagadas por el Patrón","Cuotas Sindicales Pagadas por el Patrón",11,null,"011|Pago de abonos INFONACOT","Pago de abonos INFONACOT",11,null,null,null,null,11,"2016-03-25","2016-03-14","2016-03-20"]
["28","Tarjeta de debito",null,null,null,null,null,null,null,null,"037|INTERACCIONES","INTERACCIONES","Banco Interacciones, S.A., Institución de Banca Múltiple",null,null,null,null,"014|Subsidios por incapacidad","Subsidios por incapacidad",12,null,"012|Anticipo de salarios","Anticipo de salarios",12,null,null,null,null,12,"2016-04-01","2016-03-21","2016-03-27"]
["29","Tarjeta de servicio",null,null,null,null,null,null,null,null,"042|MIFEL","MIFEL","Banca Mifel, S.A., Institución de Banca Múltiple, Grupo Financiero Mifel",null,null,null,null,"015|Becas para trabajadores y/o hijos","Becas para trabajadores y/o hijos",13,null,"013|Pagos hechos con exceso al trabajador","Pagos hechos con exceso al trabajador",13,null,null,null,null,13,"2016-04-08","2016-03-28","2016-04-03"]
["99","Otros",null,null,null,null,null,null,null,null,"044|SCOTIABANK","SCOTIABANK","Scotiabank Inverlat, S.A.",null,null,null,null,"016|Otros","Otros",14,null,"014|Errores","Errores",14,null,null,null,null,14,"2016-04-15","2016-04-04","2016-04-10"]
[0,"Otros",null,null,null,null,null,null,null,null,"058|BANREGIO","BANREGIO","Banco Regional de Monterrey, S.A., Institución de Banca Múltiple, Banregio Grupo Financiero",null,null,null,null,"017|Subsidio para el empleo","Subsidio para el empleo",15,null,"015|Pérdidas","Pérdidas",15,null,null,null,null,15,"2016-04-22","2016-04-11","2016-04-17"]
[null,null,null,null,null,null,null,null,null,null,"059|INVEX","INVEX","Banco Invex, S.A., Institución de Banca Múltiple, Invex Grupo Financiero",null,null,null,null,"019|Horas extra","Horas extra",16,null,"016|Averías","Averías",16,null,null,null,null,16,"2016-04-29","2016-04-18","2016-04-24"]
[null,null,null,null,null,null,null,null,null,null,"060|BANSI","BANSI","Bansi, S.A., Institución de Banca Múltiple",null,null,null,null,"020|Prima dominical","Prima dominical",17,null,"017|Adquisición de artículos producidos por la empresa o establecimiento","Adquisición de artículos producidos por la empresa o establecimiento",17,null,null,null,null,17,"2016-05-06","2016-04-25","2016-05-01"]
[null,null,null,null,null,null,null,null,null,null,"062|AFIRME","AFIRME","Banca Afirme, S.A., Institución de Banca Múltiple",null,null,null,null,"021|Prima vacacional","Prima vacacional",18,null,"018|Cuotas para la constitución y fomento de sociedades cooperativas y de cajas de ahorro","Cuotas para la constitución y fomento de sociedades cooperativas y de cajas de ahorro",18,null,null,null,null,18,"2016-05-13","2016-05-02","2016-05-08"]
[null,null,null,null,null,null,null,null,null,null,"072|BANORTE","BANORTE","Banco Mercantil del Norte, S.A., Institución de Banca Múltiple, Grupo Financiero Banorte",null,null,null,null,"022|Prima por antigüedad","Prima por antigüedad",19,null,"019|Cuotas sindicales","Cuotas sindicales",19,null,null,null,null,19,"2016-05-20","2016-05-09","2016-05-15"]
[null,null,null,null,null,null,null,null,null,null,"102|THE ROYAL BANK","THE ROYAL BANK","The Royal Bank of Scotland México, S.A., Institución de Banca Múltiple",null,null,null,null,"023|Pagos por separación","Pagos por separación",20,null,"020|Ausencia (Ausentismo)","Ausencia (Ausentismo)",20,null,null,null,null,20,"2016-05-27","2016-05-16","2016-05-22"]
[null,null,null,null,null,null,null,null,null,null,"103|AMERICAN EXPRESS","AMERICAN EXPRESS","American Express Bank (México), S.A., Institución de Banca Múltiple",null,null,null,null,"024|Seguro de retiro","Seguro de retiro",21,null,"021|Cuotas obrero patronales","Cuotas obrero patronales",21,null,null,null,null,21,"2016-06-03","2016-05-23","2016-05-29"]
[null,null,null,null,null,null,null,null,null,null,"106|BAMSA","BAMSA","Bank of America México, S.A., Institución de Banca Múltiple, Grupo Financiero Bank of America",null,null,null,null,"025|Indemnizaciones","Indemnizaciones",22,null," ",null," ",null,null,null,null,22,"2016-06-10","2016-05-30","2016-06-05"]
[null,null,null,null,null,null,null,null,null,null,"108|TOKYO","TOKYO","Bank of Tokyo-Mitsubishi UFJ (México), S.A.",null,null,null,null,"026|Reembolso por funeral","Reembolso por funeral",23,null,null,null,null,null,null,null,null,23,"2016-06-17","2016-06-06","2016-06-12"]
[null,null,null,null,null,null,null,null,null,null,"110|JP MORGAN","JP MORGAN","Banco J.P. Morgan, S.A., Institución de Banca Múltiple, J.P. Morgan Grupo Financiero",null,null,null,null,"027|Cuotas de seguridad social pagadas por el patrón","Cuotas de seguridad social pagadas por el patrón",24,null,null,null,null,null,null,null,null,24,"2016-06-24","2016-06-13","2016-06-19"]
[null,null,null,null,null,null,null,null,null,null,"112|BMONEX","BMONEX","Banco Monex, S.A., Institución de Banca Múltiple",null,null,null,null,"028|Comisiones","Comisiones",25,null,null,null,null,null,null,null,null,25,"2016-07-01","2016-06-20","2016-06-26"]
[null,null,null,null,null,null,null,null,null,null,"113|VE POR MAS","VE POR MAS","Banco Ve Por Mas, S.A. Institución de Banca Múltiple",null,null,null,null,"029|Vales de despensa","Vales de despensa",26,null,null,null,null,null,null,null,null,26,"2016-07-08","2016-06-27","2016-07-03"]
[null,null,null,null,null,null,null,null,null,null,"116|ING","ING","ING Bank (México), S.A., Institución de Banca Múltiple, ING Grupo Financiero",null,null,null,null,"030|Vales de restaurante","Vales de restaurante",27,null,null,null,null,null,null,null,null,27,"2016-07-15","2016-07-04","2016-07-10"]
[null,null,null,null,null,null,null,null,null,null,"124|DEUTSCHE","DEUTSCHE","Deutsche Bank México, S.A., Institución de Banca Múltiple",null,null,null,null,"031|Vales de gasolina","Vales de gasolina",28,null,null,null,null,null,null,null,null,28,"2016-07-22","2016-07-11","2016-07-17"]
[null,null,null,null,null,null,null,null,null,null,"126|CREDIT SUISSE","CREDIT SUISSE","Banco Credit Suisse (México), S.A. Institución de Banca Múltiple, Grupo Financiero Credit Suisse (México)",null,null,null,null,"032|Vales de ropa","Vales de ropa",29,null,null,null,null,null,null,null,null,29,"2016-07-29","2016-07-18","2016-07-24"]
[null,null,null,null,null,null,null,null,null,null,"127|AZTECA","AZTECA","Banco Azteca, S.A. Institución de Banca Múltiple.",null,null,null,null,"033|Ayuda para renta","Ayuda para renta",30,null,null,null,null,null,null,null,null,30,"2016-08-05","2016-07-25","2016-07-31"]
[null,null,null,null,null,null,null,null,null,null,"128|AUTOFIN","AUTOFIN","Banco Autofin México, S.A. Institución de Banca Múltiple",null,null,null,null,"034|Ayuda para artículos escolares","Ayuda para artículos escolares",31,null,null,null,null,null,null,null,null,31,"2016-08-12","2016-08-01","2016-08-07"]
[null,null,null,null,null,null,null,null,null,null,"129|BARCLAYS","BARCLAYS","Barclays Bank México, S.A., Institución de Banca Múltiple, Grupo Financiero Barclays México",null,null,null,null,"035|Ayuda para anteojos","Ayuda para anteojos",32,null,null,null,null,null,null,null,null,32,"2016-08-19","2016-08-08","2016-08-14"]
[null,null,null,null,null,null,null,null,null,null,"130|COMPARTAMOS","COMPARTAMOS","Banco Compartamos, S.A., Institución de Banca Múltiple",null,null,null,null,"036|Ayuda para transporte","Ayuda para transporte",33,null,null,null,null,null,null,null,null,33,"2016-08-26","2016-08-15","2016-08-21"]
[null,null,null,null,null,null,null,null,null,null,"131|BANCO FAMSA","BANCO FAMSA","Banco Ahorro Famsa, S.A., Institución de Banca Múltiple",null,null,null,null,"037|Ayuda para gastos de funeral","Ayuda para gastos de funeral",34,null,null,null,null,null,null,null,null,34,"2016-09-02","2016-08-22","2016-08-28"]
[null,null,null,null,null,null,null,null,null,null,"132|BMULTIVA","BMULTIVA","Banco Multiva, S.A., Institución de Banca Múltiple, Multivalores Grupo Financiero",null,null,null,null,"038|Otros ingresos por salarios","Otros ingresos por salarios",35,null,null,null,null,null,null,null,null,35,"2016-09-09","2016-08-29","2016-09-04"]
[null,null,null,null,null,null,null,null,null,null,"133|ACTINVER","ACTINVER","Banco Actinver, S.A. Institución de Banca Múltiple, Grupo Financiero Actinver",null,null,null,null,"039|Jubilaciones, pensiones o haberes de retiro","Jubilaciones, pensiones o haberes de retiro",36,null,null,null,null,null,null,null,null,36,"2016-09-16","2016-09-05","2016-09-11"]
[null,null,null,null,null,null,null,null,null,null,"134|WAL-MART","WAL-MART","Banco Wal-Mart de México Adelante, S.A., Institución de Banca Múltiple",null,null,null,null," ",null,null,null,null,null,null,null,null,null,null,37,"2016-09-23","2016-09-12","2016-09-18"]
[null,null,null,null,null,null,null,null,null,null,"135|NAFIN","NAFIN","Nacional Financiera, Sociedad Nacional de Crédito, Institución de Banca de Desarrollo",null,null,null,null,null,null,null,null,null,null,null,null,null,null,null,38,"2016-09-30","2016-09-19","2016-09-25"]
[null,null,null,null,null,null,null,null,null,null,"136|INTERBANCO","INTERBANCO","Inter Banco, S.A. Institución de Banca Múltiple",null,null,null,null,null,null,null,null,null,null,null,null,null,null,null,39,"2016-10-07","2016-09-26","2016-10-02"]
[null,null,null,null,null,null,null,null,null,null,"137|BANCOPPEL","BANCOPPEL","BanCoppel, S.A., Institución de Banca Múltiple",null,null,null,null,null,null,null,null,null,null,null,null,null,null,null,40,"2016-10-14","2016-10-03","2016-10-09"]
[null,null,null,null,null,null,null,null,null,null,"138|ABC CAPITAL","ABC CAPITAL","ABC Capital, S.A., Institución de Banca Múltiple",null,null,null,null,null,null,null,null,null,null,null,null,null,null,null,41,"2016-10-21","2016-10-10","2016-10-16"]
[null,null,null,null,null,null,null,null,null,null,"139|UBS BANK","UBS BANK","UBS Bank México, S.A., Institución de Banca Múltiple, UBS Grupo Financiero",null,null,null,null,null,null,null,null,null,null,null,null,null,null,null,42,"2016-10-28","2016-10-17","2016-10-23"]
[null,null,null,null,null,null,null,null,null,null,"140|CONSUBANCO","CONSUBANCO","Consubanco, S.A. Institución de Banca Múltiple",null,null,null,null,null,null,null,null,null,null,null,null,null,null,null,43,"2016-11-04","2016-10-24","2016-10-30"]
[null,null,null,null,null,null,null,null,null,null,"141|VOLKSWAGEN","VOLKSWAGEN","Volkswagen Bank, S.A., Institución de Banca Múltiple",null,null,null,null,null,null,null,null,null,null,null,null,null,null,null,44,"2016-11-11","2016-10-31","2016-11-06"]
[null,null,null,null,null,null,null,null,null,null,"143|CIBANCO","CIBANCO","CIBanco, S.A.",null,null,null,null,null,null,null,null,null,null,null,null,null,null,null,45,"2016-11-18","2016-11-07","2016-11-13"]
[null,null,null,null,null,null,null,null,null,null,"145|BBASE","BBASE","Banco Base, S.A., Institución de Banca Múltiple",null,null,null,null,null,null,null,null,null,null,null,null,null,null,null,46,"2016-11-25","2016-11-14","2016-11-20"]
[null,null,null,null,null,null,null,null,null,null,"166|BANSEFI","BANSEFI","Banco del Ahorro Nacional y Servicios Financieros, Sociedad Nacional de Crédito, Institución de Banca de Desarrollo",null,null,null,null,null,null,null,null,null,null,null,null,null,null,null,47,"2016-12-02","2016-11-21","2016-11-27"]
[null,null,null,null,null,null,null,null,null,null,"168|HIPOTECARIA FEDERAL","HIPOTECARIA FEDERAL","Sociedad Hipotecaria Federal, Sociedad Nacional de Crédito, Institución de Banca de Desarrollo",null,null,null,null,null,null,null,null,null,null,null,null,null,null,null,48,"2016-12-09","2016-11-28","2016-12-04"]
[null,null,null,null,null,null,null,null,null,null,"600|MONEXCB","MONEXCB","Monex Casa de Bolsa, S.A. de C.V. Monex Grupo Financiero",null,null,null,null,null,null,null,null,null,null,null,null,null,null,null,49,"2016-12-16","2016-12-05","2016-12-11"]
[null,null,null,null,null,null,null,null,null,null,"601|GBM","GBM","GBM Grupo Bursátil Mexicano, S.A. de C.V. Casa de Bolsa",null,null,null,null,null,null,null,null,null,null,null,null,null,null,null,50,"2016-12-23","2016-12-12","2016-12-18"]
[null,null,null,null,null,null,null,null,null,null,"602|MASARI","MASARI","Masari Casa de Bolsa, S.A.",null,null,null,null,null,null,null,null,null,null,null,null,null,null,null,51,"2016-12-30","2016-12-19","2016-12-25"]
[null,null,null,null,null,null,null,null,null,null,"605|VALUE","VALUE","Value, S.A. de C.V. Casa de Bolsa",null,null,null,null,null,null,null,null,null,null,null,null,null,null,null,52,"2017-01-06","2016-12-26","2017-01-01"]
[null,null,null,null,null,null,null,null,null,null,"606|ESTRUCTURADORES","ESTRUCTURADORES","Estructuradores del Mercado de Valores Casa de Bolsa, S.A. de C.V."]
[null,null,null,null,null,null,null,null,null,null,"607|TIBER","TIBER","Casa de Cambio Tiber, S.A. de C.V."]
[null,null,null,null,null,null,null,null,null,null,"608|VECTOR","VECTOR","Vector Casa de Bolsa, S.A. de C.V."]
[null,null,null,null,null,null,null,null,null,null,"610|B&B","B&B","B y B, Casa de Cambio, S.A. de C.V."]
[null,null,null,null,null,null,null,null,null,null,"614|ACCIVAL","ACCIVAL","Acciones y Valores Banamex, S.A. de C.V., Casa de Bolsa"]
[null,null,null,null,null,null,null,null,null,null,"615|MERRILL LYNCH","MERRILL LYNCH","Merrill Lynch México, S.A. de C.V. Casa de Bolsa"]
[null,null,null,null,null,null,null,null,null,null,"616|FINAMEX","FINAMEX","Casa de Bolsa Finamex, S.A. de C.V."]
[null,null,null,null,null,null,null,null,null,null,"617|VALMEX","VALMEX","Valores Mexicanos Casa de Bolsa, S.A. de C.V."]
[null,null,null,null,null,null,null,null,null,null,"618|UNICA","UNICA","Unica Casa de Cambio, S.A. de C.V."]
[null,null,null,null,null,null,null,null,null,null,"619|MAPFRE","MAPFRE","MAPFRE Tepeyac, S.A."]
[null,null,null,null,null,null,null,null,null,null,"620|PROFUTURO","PROFUTURO","Profuturo G.N.P., S.A. de C.V., Afore"]
[null,null,null,null,null,null,null,null,null,null,"621|CB ACTINVER","CB ACTINVER","Actinver Casa de Bolsa, S.A. de C.V."]
[null,null,null,null,null,null,null,null,null,null,"622|OACTIN","OACTIN","OPERADORA ACTINVER, S.A. DE C.V."]
[null,null,null,null,null,null,null,null,null,null,"623|SKANDIA","SKANDIA","Skandia Vida, S.A. de C.V."]
[null,null,null,null,null,null,null,null,null,null,"626|CBDEUTSCHE","CBDEUTSCHE","Deutsche Securities, S.A. de C.V. CASA DE BOLSA"]
[null,null,null,null,null,null,null,null,null,null,"627|ZURICH","ZURICH","Zurich Compañía de Seguros, S.A."]
[null,null,null,null,null,null,null,null,null,null,"628|ZURICHVI","ZURICHVI","Zurich Vida, Compañía de Seguros, S.A."]
[null,null,null,null,null,null,null,null,null,null,"629|SU CASITA","SU CASITA","Hipotecaria Su Casita, S.A. de C.V. SOFOM ENR"]
[null,null,null,null,null,null,null,null,null,null,"630|CB INTERCAM","CB INTERCAM","Intercam Casa de Bolsa, S.A. de C.V."]
[null,null,null,null,null,null,null,null,null,null,"631|CI BOLSA","CI BOLSA","CI Casa de Bolsa, S.A. de C.V."]
[null,null,null,null,null,null,null,null,null,null,"632|BULLTICK CB","BULLTICK CB","Bulltick Casa de Bolsa, S.A., de C.V."]
[null,null,null,null,null,null,null,null,null,null,"633|STERLING","STERLING","Sterling Casa de Cambio, S.A. de C.V."]
[null,null,null,null,null,null,null,null,null,null,"634|FINCOMUN","FINCOMUN","Fincomún, Servicios Financieros Comunitarios, S.A. de C.V."]
[null,null,null,null,null,null,null,null,null,null,"636|HDI SEGUROS","HDI SEGUROS","HDI Seguros, S.A. de C.V."]
[null,null,null,null,null,null,null,null,null,null,"637|ORDER","ORDER","Order Express Casa de Cambio, S.A. de C.V"]
[null,null,null,null,null,null,null,null,null,null,"638|AKALA","AKALA","Akala, S.A. de C.V., Sociedad Financiera Popular"]
[null,null,null,null,null,null,null,null,null,null,"640|CB JPMORGAN","CB JPMORGAN","J.P. Morgan Casa de Bolsa, S.A. de C.V. J.P. Morgan Grupo Financiero"]
[null,null,null,null,null,null,null,null,null,null,"642|REFORMA","REFORMA","Operadora de Recursos Reforma, S.A. de C.V., S.F.P."]
[null,null,null,null,null,null,null,null,null,null,"646|STP","STP","Sistema de Transferencias y Pagos STP, S.A. de C.V.SOFOM ENR"]
[null,null,null,null,null,null,null,null,null,null,"647|TELECOMM","TELECOMM","Telecomunicaciones de México"]
[null,null,null,null,null,null,null,null,null,null,"648|EVERCORE","EVERCORE","Evercore Casa de Bolsa, S.A. de C.V."]
[null,null,null,null,null,null,null,null,null,null,"649|SKANDIA","SKANDIA","Skandia Operadora de Fondos, S.A. de C.V."]
[null,null,null,null,null,null,null,null,null,null,"651|SEGMTY","SEGMTY","Seguros Monterrey New York Life, S.A de C.V"]
[null,null,null,null,null,null,null,null,null,null,"652|ASEA","ASEA","Solución Asea, S.A. de C.V., Sociedad Financiera Popular"]
[null,null,null,null,null,null,null,null,null,null,"653|KUSPIT","KUSPIT","Kuspit Casa de Bolsa, S.A. de C.V."]
[null,null,null,null,null,null,null,null,null,null,"655|SOFIEXPRESS","SOFIEXPRESS","J.P. SOFIEXPRESS, S.A. de C.V., S.F.P."]
[null,null,null,null,null,null,null,null,null,null,"656|UNAGRA","UNAGRA","UNAGRA, S.A. de C.V., S.F.P."]
[null,null,null,null,null,null,null,null,null,null,"659|OPCIONES EMPRESARIALES DEL NOROESTE","OPCIONES EMPRESARIALES DEL NOROESTE","OPCIONES EMPRESARIALES DEL NORESTE, S.A. DE C.V., S.F.P."]
[null,null,null,null,null,null,null,null,null,null,"901|CLS","CLS","Cls Bank International"]
[null,null,null,null,null,null,null,null,null,null,"902|INDEVAL","INDEVAL","SD. Indeval, S.A. de C.V."]
[null,null,null,null,null,null,null,null,null,null,"670|LIBERTAD","LIBERTAD","Libertad Servicios Financieros, S.A. De C.V."]

{"sheet":"Trabajadores","index":2,"n_rows":5,"n_cols":19,"rows_kept":5,"cut":false,"hidden":false,"merged":[]}
[1,2,3,4,5,6,7,8,9,10,11,12,13,14,15,16,17,18,19]
["CÓDIGO EMPLEADO","NOMBRE","RFC DEL RECEPTOR","CURP","NSS IMSS","CÓDIGO TIPO DE RÉGIMEN","CÓDIGO POSTAL DOMICILIO","PAIS","EMAIL 1","SALARIO BASE","SALARIO DIARIO INTEGRADO","DEPARTAMENTO","CLABE INTERBANCARIA","CÓDIGO DE BANCO","FECHA INICIO RELACIÓN LABORAL","Nº SEMANAS ANTIGÜEDAD","PUESTO","TIPO DE CONTRATO","TIPO DE JORNADA"]
[1,"ROSITA FLORES","XAXX9900999X9","XAXX010101XXXXXX05",123456789,"02| Sueldos y salarios","99999","MEXICO","ejemplo@dominio.com",99,null,null,"012345678901234567","02",null,100,null,null,"COMPLETA"]
[2,"ROSITA FLORES","XAXX9900999X9","XAXX010101XXXXXX05",123456789,"02| Sueldos y salarios","99999","MEXICO","ejemplo@dominio.com",99,null,null,"012345678901234567","02",null,100,null,null,"COMPLETA"]
[3,"ROSITA FLORES","XAXX9900999X9","XAXX010101XXXXXX05",123456789,"02| Sueldos y salarios","99999","MEXICO","ejemplo@dominio.com",99,null,null,"012345678901234567","02",null,100,null,null,"COMPLETA"]

{"sheet":"Plantilla","index":3,"n_rows":5,"n_cols":171,"rows_kept":5,"cut":false,"hidden":false,"merged":[]}
[]
["RFC DEL EMISOR","Nº FOLIO INTERNO DE RECIBO"," VERSION ","REGISTRO PATRONAL","CÓDIGO EMPLEADO","CURP","CÓDIGO TIPO DE RÉGIMEN","NSS IMSS","FECHA DE PAGO","FECHA INICIAL PERIODO DE NOMINA","FECHA FINAL PERIODO DE NOMINA","NUMERO DE DIAS PAGADOS","DEPARTAMENTO","CLABE INTERBANCARIA","CÓDIGO DE BANCO","FECHA INICIO RELACIÓN LABORAL","Nº SEMANAS ANTIGÜEDAD","PUESTO","TIPO DE CONTRATO","TIPO DE JORNADA","PERIODICIDAD DEL PAGO","SALARIO BASE","CÓDIGO RIESGO","SALARIO DIARIO INTEGRADO","CÓDIGO PERCEPCIÓN SAT","CÓDIGO PERCEPCIÓN INTERNO","CONCEPTO PERCEPCIÓN","MONTO DE LA PERCEPCIÓN GRAVABLE","MONTO DE LA PERCEPCIÓN EXENTA","CÓDIGO PERCEPCIÓN SAT","CÓDIGO PERCEPCIÓN INTERNO","CONCEPTO PERCEPCIÓN","MONTO DE LA PERCEPCIÓN GRAVABLE","MONTO DE LA PERCEPCIÓN EXENTA","CÓDIGO PERCEPCIÓN SAT","CÓDIGO PERCEPCIÓN INTERNO","CONCEPTO PERCEPCIÓN","MONTO DE LA PERCEPCIÓN GRAVABLE","MONTO DE LA PERCEPCIÓN EXENTA","CÓDIGO PERCEPCIÓN SAT","CÓDIGO PERCEPCIÓN INTERNO","CONCEPTO PERCEPCIÓN","MONTO DE LA PERCEPCIÓN GRAVABLE","MONTO DE LA PERCEPCIÓN EXENTA","CÓDIGO PERCEPCIÓN SAT","CÓDIGO PERCEPCIÓN INTERNO","CONCEPTO PERCEPCIÓN","MONTO DE LA PERCEPCIÓN GRAVABLE","MONTO DE LA PERCEPCIÓN EXENTA","CÓDIGO PERCEPCIÓN SAT","CÓDIGO PERCEPCIÓN INTERNO","CONCEPTO PERCEPCIÓN","MONTO DE LA PERCEPCIÓN GRAVABLE","MONTO DE LA PERCEPCIÓN EXENTA","CÓDIGO PERCEPCIÓN SAT","CÓDIGO PERCEPCIÓN INTERNO","CONCEPTO PERCEPCIÓN","MONTO DE LA PERCEPCIÓN GRAVABLE","MONTO DE LA PERCEPCIÓN EXENTA","CÓDIGO PERCEPCIÓN SAT","CÓDIGO PERCEPCIÓN INTERNO","CONCEPTO PERCEPCIÓN","MONTO DE LA PERCEPCIÓN GRAVABLE","MONTO DE LA PERCEPCIÓN EXENTA","CÓDIGO PERCEPCIÓN SAT","CÓDIGO PERCEPCIÓN INTERNO","CONCEPTO PERCEPCIÓN","MONTO DE LA PERCEPCIÓN GRAVABLE","MONTO DE LA PERCEPCIÓN EXENTA","CÓDIGO PERCEPCIÓN SAT","CÓDIGO PERCEPCIÓN INTERNO","CONCEPTO PERCEPCIÓN","MONTO DE LA PERCEPCIÓN GRAVABLE","MONTO DE LA PERCEPCIÓN EXENTA","CÓDIGO PERCEPCIÓN SAT","CÓDIGO PERCEPCIÓN INTERNO","CONCEPTO PERCEPCIÓN","MONTO DE LA PERCEPCIÓN GRAVABLE","MONTO DE LA PERCEPCIÓN EXENTA","CÓDIGO PERCEPCIÓN SAT","CÓDIGO PERCEPCIÓN INTERNO","CONCEPTO PERCEPCIÓN","MONTO DE LA PERCEPCIÓN GRAVABLE","MONTO DE LA PERCEPCIÓN EXENTA","CÓDIGO DEDUCCIÓN SAT","CÓDIGO DEDUCCIÓN INTERNO","CONCEPTO DEDUCCIÓN","MONTO DE LA DEDUCCIÓN GRAVABLE","MONTO DE LA DEDUCCIÓN EXENTA","CÓDIGO DEDUCCIÓN SAT","CÓDIGO DEDUCCIÓN INTERNO","CONCEPTO DEDUCCIÓN","MONTO DE LA DEDUCCIÓN GRAVABLE","MONTO DE LA DEDUCCIÓN EXENTA","CÓDIGO DEDUCCIÓN SAT","CÓDIGO DEDUCCIÓN INTERNO","CONCEPTO DEDUCCIÓN","MONTO DE LA DEDUCCIÓN GRAVABLE","MONTO DE LA DEDUCCIÓN EXENTA","CÓDIGO DEDUCCIÓN SAT","CÓDIGO DEDUCCIÓN INTERNO","CONCEPTO DEDUCCIÓN","MONTO DE LA DEDUCCIÓN GRAVABLE","MONTO DE LA DEDUCCIÓN EXENTA","CÓDIGO DEDUCCIÓN SAT","CÓDIGO DEDUCCIÓN INTERNO","CONCEPTO DEDUCCIÓN","MONTO DE LA DEDUCCIÓN GRAVABLE","MONTO DE LA DEDUCCIÓN EXENTA","CÓDIGO DEDUCCIÓN SAT","CÓDIGO DEDUCCIÓN INTERNO","CONCEPTO DEDUCCIÓN","MONTO DE LA DEDUCCIÓN GRAVABLE","MONTO DE LA DEDUCCIÓN EXENTA","CÓDIGO DEDUCCIÓN SAT","CÓDIGO DEDUCCIÓN INTERNO","CONCEPTO DEDUCCIÓN","MONTO DE LA DEDUCCIÓN GRAVABLE","MONTO DE LA DEDUCCIÓN EXENTA","CÓDIGO DEDUCCIÓN SAT","CÓDIGO DEDUCCIÓN INTERNO","CONCEPTO DEDUCCIÓN","MONTO DE LA DEDUCCIÓN GRAVABLE","MONTO DE LA DEDUCCIÓN EXENTA","CÓDIGO DEDUCCIÓN SAT","CÓDIGO DEDUCCIÓN INTERNO","CONCEPTO DEDUCCIÓN","MONTO DE LA DEDUCCIÓN GRAVABLE","MONTO DE LA DEDUCCIÓN EXENTA","CÓDIGO DEDUCCIÓN SAT","CÓDIGO DEDUCCIÓN INTERNO","CONCEPTO DEDUCCIÓN","MONTO DE LA DEDUCCIÓN GRAVABLE","MONTO DE LA DEDUCCIÓN EXENTA","CÓDIGO DEDUCCIÓN SAT","CÓDIGO DEDUCCIÓN INTERNO","CONCEPTO DEDUCCIÓN","MONTO DE LA DEDUCCIÓN GRAVABLE","MONTO DE LA DEDUCCIÓN EXENTA","CÓDIGO DEDUCCIÓN SAT","CÓDIGO DEDUCCIÓN INTERNO","CONCEPTO DEDUCCIÓN","MONTO DE LA DEDUCCIÓN GRAVABLE","MONTO DE LA DEDUCCIÓN EXENTA","Nº DIAS DE INCAPACIDAD","CÓDIGO TIPO INCAPACIDAD","MONTO INCAPACIDAD","Nº DIAS DE INCAPACIDAD","CÓDIGO TIPO INCAPACIDAD","MONTO INCAPACIDAD","Nº DIAS DE INCAPACIDAD","CÓDIGO TIPO INCAPACIDAD","MONTO INCAPACIDAD","Nº DIAS QUE EL TRABAJOR REALIZÓ HRS EXTRAS","TIPO DE HORAS EXTRAS","Nº HORAS EXTRAS","MONTO TIEMPO EXTRA","Nº DIAS QUE EL TRABAJOR REALIZÓ HRS EXTRAS","TIPO DE HORAS EXTRAS","Nº HORAS EXTRAS","MONTO TIEMPO EXTRA","NOMBRE","RFC DEL RECEPTOR","CÓDIGO POSTAL DOMICILIO","PAIS","CODIGO NÓMINA","MAIL 1","MAIL 2","Metodo de Pago","Cuenta Bancaria del Pago"]
[{"$f":"RFCEMISOR","v":"XAXX010101000"},null,{"$f":"VERSION","v":1.1000000000000001},{"$f":"REGISTROPATRONAL","v":"A9990009900"},1,{"$f":"IF(VLOOKUP(E3,CatalogoEmpleados,4,0)=0,\"\",VLOOKUP(E3,CatalogoEmpleados,4,0))","v":"XAXX010101XXXXXX05"},{"$f":"VLOOKUP(E3,CatalogoEmpleados,6,0)","v":"02| Sueldos y salarios"},{"$f":"VLOOKUP(E3,CatalogoEmpleados,5,0)","v":123456789},{"$f":"VLOOKUP(FJ3,PERIOD_NOM,2,0)","v":"2016-01-15"},{"$f":"VLOOKUP(FJ3,PERIOD_NOM,3,0)","v":"2016-01-04"},{"$f":"VLOOKUP(FJ3,PERIOD_NOM,4,0)","v":"2016-01-10"},null,{"$f":"IF(VLOOKUP(E3,CatalogoEmpleados,12,0)=0,\"\",VLOOKUP(E3,CatalogoEmpleados,12,0))","v":""},{"$f":"IF(VLOOKUP(E3,CatalogoEmpleados,13,0)=0,\"\",VLOOKUP(E3,CatalogoEmpleados,13,0))","v":"012345678901234567"},{"$f":"IF(VLOOKUP(E3,CatalogoEmpleados,14,0)=0,\"\",VLOOKUP(E3,CatalogoEmpleados,14,0))","v":"02"},{"$f":"IF(VLOOKUP(E3,CatalogoEmpleados,15,0)=0,\"\",VLOOKUP(E3,CatalogoEmpleados,15,0))","v":""},{"$f":"IF(VLOOKUP(E3,CatalogoEmpleados,16,0)=0,\"\",VLOOKUP(E3,CatalogoEmpleados,16,0))","v":100},{"$f":"IF(VLOOKUP(E3,CatalogoEmpleados,17,0)=0,\"\",VLOOKUP(E3,CatalogoEmpleados,17,0))","v":""},{"$f":"IF(VLOOKUP(E3,CatalogoEmpleados,18,0)=0,\"\",VLOOKUP(E3,CatalogoEmpleados,18,0))","v":""},{"$f":"IF(VLOOKUP(E3,CatalogoEmpleados,19,0)=0,\"\",VLOOKUP(E3,CatalogoEmpleados,19,0))","v":"COMPLETA"},{"$f":"PERIODICIDAD","v":"Semanal"},{"$f":"IF(VLOOKUP(E3,CatalogoEmpleados,10,0)=0,\"\",VLOOKUP(E3,CatalogoEmpleados,10,0))","v":99},{"$f":"CODIGORIESGO","v":"1|Clase I"},{"$f":"IF(VLOOKUP(E3,CatalogoEmpleados,11,0)=0,\"\",VLOOKUP(E3,CatalogoEmpleados,11,0))","v":""},null,{"$f":"IF(ISERROR(VLOOKUP(Y3,PERCEPCIONES,3,0)),\"\",VLOOKUP(Y3,PERCEPCIONES,3,0))","v":""},{"$f":"IF(ISERROR(VLOOKUP(Y3,PERCEPCIONES,2,0)),\"\",VLOOKUP(Y3,PERCEPCIONES,2,0))","v":""},null,null,null,{"$f":"IF(ISERROR(VLOOKUP(AD3,PERCEPCIONES,3,0)),\"\",VLOOKUP(AD3,PERCEPCIONES,3,0))","v":""},{"$f":"IF(ISERROR(VLOOKUP(AD3,PERCEPCIONES,2,0)),\"\",VLOOKUP(AD3,PERCEPCIONES,2,0))","v":""},null,null,null,{"$f":"IF(ISERROR(VLOOKUP(AI3,PERCEPCIONES,3,0)),\"\",VLOOKUP(AI3,PERCEPCIONES,3,0))","v":""},{"$f":"IF(ISERROR(VLOOKUP(AI3,PERCEPCIONES,2,0)),\"\",VLOOKUP(AI3,PERCEPCIONES,2,0))","v":""},null,null,null,{"$f":"IF(ISERROR(VLOOKUP(AN3,PERCEPCIONES,3,0)),\"\",VLOOKUP(AN3,PERCEPCIONES,3,0))","v":""},{"$f":"IF(ISERROR(VLOOKUP(AN3,PERCEPCIONES,2,0)),\"\",VLOOKUP(AN3,PERCEPCIONES,2,0))","v":""},null,null,null,{"$f":"IF(ISERROR(VLOOKUP(AS3,PERCEPCIONES,3,0)),\"\",VLOOKUP(AS3,PERCEPCIONES,3,0))","v":""},{"$f":"IF(ISERROR(VLOOKUP(AS3,PERCEPCIONES,2,0)),\"\",VLOOKUP(AS3,PERCEPCIONES,2,0))","v":""},null,null,null,{"$f":"IF(ISERROR(VLOOKUP(AX3,PERCEPCIONES,3,0)),\"\",VLOOKUP(AX3,PERCEPCIONES,3,0))","v":""},{"$f":"IF(ISERROR(VLOOKUP(AX3,PERCEPCIONES,2,0)),\"\",VLOOKUP(AX3,PERCEPCIONES,2,0))","v":""},null,null,null,{"$f":"IF(ISERROR(VLOOKUP(BC3,PERCEPCIONES,3,0)),\"\",VLOOKUP(BC3,PERCEPCIONES,3,0))","v":""},{"$f":"IF(ISERROR(VLOOKUP(BC3,PERCEPCIONES,2,0)),\"\",VLOOKUP(BC3,PERCEPCIONES,2,0))","v":""},null,null,null,{"$f":"IF(ISERROR(VLOOKUP(BH3,PERCEPCIONES,3,0)),\"\",VLOOKUP(BH3,PERCEPCIONES,3,0))","v":""},{"$f":"IF(ISERROR(VLOOKUP(BH3,PERCEPCIONES,2,0)),\"\",VLOOKUP(BH3,PERCEPCIONES,2,0))","v":""},null,null,null,{"$f":"IF(ISERROR(VLOOKUP(BM3,PERCEPCIONES,3,0)),\"\",VLOOKUP(BM3,PERCEPCIONES,3,0))","v":""},{"$f":"IF(ISERROR(VLOOKUP(BM3,PERCEPCIONES,2,0)),\"\",VLOOKUP(BM3,PERCEPCIONES,2,0))","v":""},null,null,null,{"$f":"IF(ISERROR(VLOOKUP(BR3,PERCEPCIONES,3,0)),\"\",VLOOKUP(BR3,PERCEPCIONES,3,0))","v":""},{"$f":"IF(ISERROR(VLOOKUP(BR3,PERCEPCIONES,2,0)),\"\",VLOOKUP(BR3,PERCEPCIONES,2,0))","v":""},null,null,null,{"$f":"IF(ISERROR(VLOOKUP(BW3,PERCEPCIONES,3,0)),\"\",VLOOKUP(BW3,PERCEPCIONES,3,0))","v":""},{"$f":"IF(ISERROR(VLOOKUP(BW3,PERCEPCIONES,2,0)),\"\",VLOOKUP(BW3,PERCEPCIONES,2,0))","v":""},null,null,null,{"$f":"IF(ISERROR(VLOOKUP(CB3,PERCEPCIONES,3,0)),\"\",VLOOKUP(CB3,PERCEPCIONES,3,0))","v":""},{"$f":"IF(ISERROR(VLOOKUP(CB3,PERCEPCIONES,2,0)),\"\",VLOOKUP(CB3,PERCEPCIONES,2,0))","v":""},null,null,null,{"$f":"IF(ISERROR(VLOOKUP(CG3,DEDUCCIONES,3,0)),\"\",VLOOKUP(CG3,DEDUCCIONES,3,0))","v":""},{"$f":"IF(ISERROR(VLOOKUP(CG3,DEDUCCIONES,2,0)),\"\",VLOOKUP(CG3,DEDUCCIONES,2,0))","v":""},null,null,null,{"$f":"IF(ISERROR(VLOOKUP(CL3,DEDUCCIONES,3,0)),\"\",VLOOKUP(CL3,DEDUCCIONES,3,0))","v":""},{"$f":"IF(ISERROR(VLOOKUP(CL3,DEDUCCIONES,2,0)),\"\",VLOOKUP(CL3,DEDUCCIONES,2,0))","v":""},null,null,null,{"$f":"IF(ISERROR(VLOOKUP(CQ3,DEDUCCIONES,3,0)),\"\",VLOOKUP(CQ3,DEDUCCIONES,3,0))","v":""},{"$f":"IF(ISERROR(VLOOKUP(CQ3,DEDUCCIONES,2,0)),\"\",VLOOKUP(CQ3,DEDUCCIONES,2,0))","v":""},null,null,null,{"$f":"IF(ISERROR(VLOOKUP(CV3,DEDUCCIONES,3,0)),\"\",VLOOKUP(CV3,DEDUCCIONES,3,0))","v":""},{"$f":"IF(ISERROR(VLOOKUP(CV3,DEDUCCIONES,2,0)),\"\",VLOOKUP(CV3,DEDUCCIONES,2,0))","v":""},null,null,null,{"$f":"IF(ISERROR(VLOOKUP(DA3,DEDUCCIONES,3,0)),\"\",VLOOKUP(DA3,DEDUCCIONES,3,0))","v":""},{"$f":"IF(ISERROR(VLOOKUP(DA3,DEDUCCIONES,2,0)),\"\",VLOOKUP(DA3,DEDUCCIONES,2,0))","v":""},null,null,null,{"$f":"IF(ISERROR(VLOOKUP(DF3,DEDUCCIONES,3,0)),\"\",VLOOKUP(DF3,DEDUCCIONES,3,0))","v":""},{"$f":"IF(ISERROR(VLOOKUP(DF3,DEDUCCIONES,2,0)),\"\",VLOOKUP(DF3,DEDUCCIONES,2,0))","v":""},null,null,null,{"$f":"IF(ISERROR(VLOOKUP(DK3,DEDUCCIONES,3,0)),\"\",VLOOKUP(DK3,DEDUCCIONES,3,0))","v":""},{"$f":"IF(ISERROR(VLOOKUP(DK3,DEDUCCIONES,2,0)),\"\",VLOOKUP(DK3,DEDUCCIONES,2,0))","v":""},null,null,null,{"$f":"IF(ISERROR(VLOOKUP(DP3,DEDUCCIONES,3,0)),\"\",VLOOKUP(DP3,DEDUCCIONES,3,0))","v":""},{"$f":"IF(ISERROR(VLOOKUP(DP3,DEDUCCIONES,2,0)),\"\",VLOOKUP(DP3,DEDUCCIONES,2,0))","v":""},null,null,null,{"$f":"IF(ISERROR(VLOOKUP(DU3,DEDUCCIONES,3,0)),\"\",VLOOKUP(DU3,DEDUCCIONES,3,0))","v":""},{"$f":"IF(ISERROR(VLOOKUP(DU3,DEDUCCIONES,2,0)),\"\",VLOOKUP(DU3,DEDUCCIONES,2,0))","v":""},null,null,null,{"$f":"IF(ISERROR(VLOOKUP(DZ3,DEDUCCIONES,3,0)),\"\",VLOOKUP(DZ3,DEDUCCIONES,3,0))","v":""},{"$f":"IF(ISERROR(VLOOKUP(DZ3,DEDUCCIONES,2,0)),\"\",VLOOKUP(DZ3,DEDUCCIONES,2,0))","v":""},null,null,null,{"$f":"IF(ISERROR(VLOOKUP(EE3,DEDUCCIONES,3,0)),\"\",VLOOKUP(EE3,DEDUCCIONES,3,0))","v":""},{"$f":"IF(ISERROR(VLOOKUP(EE3,DEDUCCIONES,2,0)),\"\",VLOOKUP(EE3,DEDUCCIONES,2,0))","v":""},null,null,null,{"$f":"IF(ISERROR(VLOOKUP(EJ3,DEDUCCIONES,3,0)),\"\",VLOOKUP(EJ3,DEDUCCIONES,3,0))","v":""},{"$f":"IF(ISERROR(VLOOKUP(EJ3,DEDUCCIONES,2,0)),\"\",VLOOKUP(EJ3,DEDUCCIONES,2,0))","v":""},null,null,null,null,null,null,null,null,null,null,null,null,null,null,null,null,null,null,null,{"$f":"VLOOKUP(E3,CatalogoEmpleados,2,0)","v":"ROSITA FLORES"},{"$f":"VLOOKUP(E3,CatalogoEmpleados,3,0)","v":"XAXX9900999X9"},{"$f":"VLOOKUP(E3,CatalogoEmpleados,7,0)","v":"99999"},{"$f":"VLOOKUP(E3,CatalogoEmpleados,8,0)","v":"MEXICO"},{"$f":"PERIODONOMINA","v":1},{"$f":"VLOOKUP(E3,CatalogoEmpleados,9,0)","v":"ejemplo@dominio.com"},null,null,null,{"$f":"VLOOKUP(FM3,COD_METODO_PAGO,2,0)","v":"Otros"}]
[{"$f":"RFCEMISOR","v":"XAXX010101000"},null,{"$f":"VERSION","v":1.1000000000000001},{"$f":"REGISTROPATRONAL","v":"A9990009900"},2,{"$f":"IF(VLOOKUP(E4,CatalogoEmpleados,4,0)=0,\"\",VLOOKUP(E4,CatalogoEmpleados,4,0))","v":"XAXX010101XXXXXX05"},{"$f":"VLOOKUP(E4,CatalogoEmpleados,6,0)","v":"02| Sueldos y salarios"},{"$f":"VLOOKUP(E4,CatalogoEmpleados,5,0)","v":123456789},{"$f":"VLOOKUP(FJ4,PERIOD_NOM,2,0)","v":"2016-01-15"},{"$f":"VLOOKUP(FJ4,PERIOD_NOM,3,0)","v":"2016-01-04"},{"$f":"VLOOKUP(FJ4,PERIOD_NOM,4,0)","v":"2016-01-10"},null,{"$f":"IF(VLOOKUP(E4,CatalogoEmpleados,12,0)=0,\"\",VLOOKUP(E4,CatalogoEmpleados,12,0))","v":""},{"$f":"IF(VLOOKUP(E4,CatalogoEmpleados,13,0)=0,\"\",VLOOKUP(E4,CatalogoEmpleados,13,0))","v":"012345678901234567"},{"$f":"IF(VLOOKUP(E4,CatalogoEmpleados,14,0)=0,\"\",VLOOKUP(E4,CatalogoEmpleados,14,0))","v":"02"},{"$f":"IF(VLOOKUP(E4,CatalogoEmpleados,15,0)=0,\"\",VLOOKUP(E4,CatalogoEmpleados,15,0))","v":""},{"$f":"IF(VLOOKUP(E4,CatalogoEmpleados,16,0)=0,\"\",VLOOKUP(E4,CatalogoEmpleados,16,0))","v":100},{"$f":"IF(VLOOKUP(E4,CatalogoEmpleados,17,0)=0,\"\",VLOOKUP(E4,CatalogoEmpleados,17,0))","v":""},{"$f":"IF(VLOOKUP(E4,CatalogoEmpleados,18,0)=0,\"\",VLOOKUP(E4,CatalogoEmpleados,18,0))","v":""},{"$f":"IF(VLOOKUP(E4,CatalogoEmpleados,19,0)=0,\"\",VLOOKUP(E4,CatalogoEmpleados,19,0))","v":"COMPLETA"},{"$f":"PERIODICIDAD","v":"Semanal"},{"$f":"IF(VLOOKUP(E4,CatalogoEmpleados,10,0)=0,\"\",VLOOKUP(E4,CatalogoEmpleados,10,0))","v":99},{"$f":"CODIGORIESGO","v":"1|Clase I"},{"$f":"IF(VLOOKUP(E4,CatalogoEmpleados,11,0)=0,\"\",VLOOKUP(E4,CatalogoEmpleados,11,0))","v":""},null,{"$f":"IF(ISERROR(VLOOKUP(Y4,PERCEPCIONES,3,0)),\"\",VLOOKUP(Y4,PERCEPCIONES,3,0))","v":""},{"$f":"IF(ISERROR(VLOOKUP(Y4,PERCEPCIONES,2,0)),\"\",VLOOKUP(Y4,PERCEPCIONES,2,0))","v":""},null,null,null,{"$f":"IF(ISERROR(VLOOKUP(AD4,PERCEPCIONES,3,0)),\"\",VLOOKUP(AD4,PERCEPCIONES,3,0))","v":""},{"$f":"IF(ISERROR(VLOOKUP(AD4,PERCEPCIONES,2,0)),\"\",VLOOKUP(AD4,PERCEPCIONES,2,0))","v":""},null,null,null,{"$f":"IF(ISERROR(VLOOKUP(AI4,PERCEPCIONES,3,0)),\"\",VLOOKUP(AI4,PERCEPCIONES,3,0))","v":""},{"$f":"IF(ISERROR(VLOOKUP(AI4,PERCEPCIONES,2,0)),\"\",VLOOKUP(AI4,PERCEPCIONES,2,0))","v":""},null,null,null,{"$f":"IF(ISERROR(VLOOKUP(AN4,PERCEPCIONES,3,0)),\"\",VLOOKUP(AN4,PERCEPCIONES,3,0))","v":""},{"$f":"IF(ISERROR(VLOOKUP(AN4,PERCEPCIONES,2,0)),\"\",VLOOKUP(AN4,PERCEPCIONES,2,0))","v":""},null,null,null,{"$f":"IF(ISERROR(VLOOKUP(AS4,PERCEPCIONES,3,0)),\"\",VLOOKUP(AS4,PERCEPCIONES,3,0))","v":""},{"$f":"IF(ISERROR(VLOOKUP(AS4,PERCEPCIONES,2,0)),\"\",VLOOKUP(AS4,PERCEPCIONES,2,0))","v":""},null,null,null,{"$f":"IF(ISERROR(VLOOKUP(AX4,PERCEPCIONES,3,0)),\"\",VLOOKUP(AX4,PERCEPCIONES,3,0))","v":""},{"$f":"IF(ISERROR(VLOOKUP(AX4,PERCEPCIONES,2,0)),\"\",VLOOKUP(AX4,PERCEPCIONES,2,0))","v":""},null,null,null,{"$f":"IF(ISERROR(VLOOKUP(BC4,PERCEPCIONES,3,0)),\"\",VLOOKUP(BC4,PERCEPCIONES,3,0))","v":""},{"$f":"IF(ISERROR(VLOOKUP(BC4,PERCEPCIONES,2,0)),\"\",VLOOKUP(BC4,PERCEPCIONES,2,0))","v":""},null,null,null,{"$f":"IF(ISERROR(VLOOKUP(BH4,PERCEPCIONES,3,0)),\"\",VLOOKUP(BH4,PERCEPCIONES,3,0))","v":""},{"$f":"IF(ISERROR(VLOOKUP(BH4,PERCEPCIONES,2,0)),\"\",VLOOKUP(BH4,PERCEPCIONES,2,0))","v":""},null,null,null,{"$f":"IF(ISERROR(VLOOKUP(BM4,PERCEPCIONES,3,0)),\"\",VLOOKUP(BM4,PERCEPCIONES,3,0))","v":""},{"$f":"IF(ISERROR(VLOOKUP(BM4,PERCEPCIONES,2,0)),\"\",VLOOKUP(BM4,PERCEPCIONES,2,0))","v":""},null,null,null,{"$f":"IF(ISERROR(VLOOKUP(BR4,PERCEPCIONES,3,0)),\"\",VLOOKUP(BR4,PERCEPCIONES,3,0))","v":""},{"$f":"IF(ISERROR(VLOOKUP(BR4,PERCEPCIONES,2,0)),\"\",VLOOKUP(BR4,PERCEPCIONES,2,0))","v":""},null,null,null,{"$f":"IF(ISERROR(VLOOKUP(BW4,PERCEPCIONES,3,0)),\"\",VLOOKUP(BW4,PERCEPCIONES,3,0))","v":""},{"$f":"IF(ISERROR(VLOOKUP(BW4,PERCEPCIONES,2,0)),\"\",VLOOKUP(BW4,PERCEPCIONES,2,0))","v":""},null,null,null,{"$f":"IF(ISERROR(VLOOKUP(CB4,PERCEPCIONES,3,0)),\"\",VLOOKUP(CB4,PERCEPCIONES,3,0))","v":""},{"$f":"IF(ISERROR(VLOOKUP(CB4,PERCEPCIONES,2,0)),\"\",VLOOKUP(CB4,PERCEPCIONES,2,0))","v":""},null,null,null,{"$f":"IF(ISERROR(VLOOKUP(CG4,DEDUCCIONES,3,0)),\"\",VLOOKUP(CG4,DEDUCCIONES,3,0))","v":""},{"$f":"IF(ISERROR(VLOOKUP(CG4,DEDUCCIONES,2,0)),\"\",VLOOKUP(CG4,DEDUCCIONES,2,0))","v":""},null,null,null,{"$f":"IF(ISERROR(VLOOKUP(CL4,DEDUCCIONES,3,0)),\"\",VLOOKUP(CL4,DEDUCCIONES,3,0))","v":""},{"$f":"IF(ISERROR(VLOOKUP(CL4,DEDUCCIONES,2,0)),\"\",VLOOKUP(CL4,DEDUCCIONES,2,0))","v":""},null,null,null,{"$f":"IF(ISERROR(VLOOKUP(CQ4,DEDUCCIONES,3,0)),\"\",VLOOKUP(CQ4,DEDUCCIONES,3,0))","v":""},{"$f":"IF(ISERROR(VLOOKUP(CQ4,DEDUCCIONES,2,0)),\"\",VLOOKUP(CQ4,DEDUCCIONES,2,0))","v":""},null,null,null,{"$f":"IF(ISERROR(VLOOKUP(CV4,DEDUCCIONES,3,0)),\"\",VLOOKUP(CV4,DEDUCCIONES,3,0))","v":""},{"$f":"IF(ISERROR(VLOOKUP(CV4,DEDUCCIONES,2,0)),\"\",VLOOKUP(CV4,DEDUCCIONES,2,0))","v":""},null,null,null,{"$f":"IF(ISERROR(VLOOKUP(DA4,DEDUCCIONES,3,0)),\"\",VLOOKUP(DA4,DEDUCCIONES,3,0))","v":""},{"$f":"IF(ISERROR(VLOOKUP(DA4,DEDUCCIONES,2,0)),\"\",VLOOKUP(DA4,DEDUCCIONES,2,0))","v":""},null,null,null,{"$f":"IF(ISERROR(VLOOKUP(DF4,DEDUCCIONES,3,0)),\"\",VLOOKUP(DF4,DEDUCCIONES,3,0))","v":""},{"$f":"IF(ISERROR(VLOOKUP(DF4,DEDUCCIONES,2,0)),\"\",VLOOKUP(DF4,DEDUCCIONES,2,0))","v":""},null,null,null,{"$f":"IF(ISERROR(VLOOKUP(DK4,DEDUCCIONES,3,0)),\"\",VLOOKUP(DK4,DEDUCCIONES,3,0))","v":""},{"$f":"IF(ISERROR(VLOOKUP(DK4,DEDUCCIONES,2,0)),\"\",VLOOKUP(DK4,DEDUCCIONES,2,0))","v":""},null,null,null,{"$f":"IF(ISERROR(VLOOKUP(DP4,DEDUCCIONES,3,0)),\"\",VLOOKUP(DP4,DEDUCCIONES,3,0))","v":""},{"$f":"IF(ISERROR(VLOOKUP(DP4,DEDUCCIONES,2,0)),\"\",VLOOKUP(DP4,DEDUCCIONES,2,0))","v":""},null,null,null,{"$f":"IF(ISERROR(VLOOKUP(DU4,DEDUCCIONES,3,0)),\"\",VLOOKUP(DU4,DEDUCCIONES,3,0))","v":""},{"$f":"IF(ISERROR(VLOOKUP(DU4,DEDUCCIONES,2,0)),\"\",VLOOKUP(DU4,DEDUCCIONES,2,0))","v":""},null,null,null,{"$f":"IF(ISERROR(VLOOKUP(DZ4,DEDUCCIONES,3,0)),\"\",VLOOKUP(DZ4,DEDUCCIONES,3,0))","v":""},{"$f":"IF(ISERROR(VLOOKUP(DZ4,DEDUCCIONES,2,0)),\"\",VLOOKUP(DZ4,DEDUCCIONES,2,0))","v":""},null,null,null,{"$f":"IF(ISERROR(VLOOKUP(EE4,DEDUCCIONES,3,0)),\"\",VLOOKUP(EE4,DEDUCCIONES,3,0))","v":""},{"$f":"IF(ISERROR(VLOOKUP(EE4,DEDUCCIONES,2,0)),\"\",VLOOKUP(EE4,DEDUCCIONES,2,0))","v":""},null,null,null,{"$f":"IF(ISERROR(VLOOKUP(EJ4,DEDUCCIONES,3,0)),\"\",VLOOKUP(EJ4,DEDUCCIONES,3,0))","v":""},{"$f":"IF(ISERROR(VLOOKUP(EJ4,DEDUCCIONES,2,0)),\"\",VLOOKUP(EJ4,DEDUCCIONES,2,0))","v":""},null,null,null,null,null,null,null,null,null,null,null,null,null,null,null,null,null,null,null,{"$f":"VLOOKUP(E4,CatalogoEmpleados,2,0)","v":"ROSITA FLORES"},{"$f":"VLOOKUP(E4,CatalogoEmpleados,3,0)","v":"XAXX9900999X9"},{"$f":"VLOOKUP(E4,CatalogoEmpleados,7,0)","v":"99999"},{"$f":"VLOOKUP(E4,CatalogoEmpleados,8,0)","v":"MEXICO"},{"$f":"PERIODONOMINA","v":1},{"$f":"VLOOKUP(E4,CatalogoEmpleados,9,0)","v":"ejemplo@dominio.com"},null,null,null,{"$f":"VLOOKUP(FM4,COD_METODO_PAGO,2,0)","v":"Otros"}]
[{"$f":"RFCEMISOR","v":"XAXX010101000"},null,{"$f":"VERSION","v":1.1000000000000001},{"$f":"REGISTROPATRONAL","v":"A9990009900"},3,{"$f":"IF(VLOOKUP(E5,CatalogoEmpleados,4,0)=0,\"\",VLOOKUP(E5,CatalogoEmpleados,4,0))","v":"XAXX010101XXXXXX05"},{"$f":"VLOOKUP(E5,CatalogoEmpleados,6,0)","v":"02| Sueldos y salarios"},{"$f":"VLOOKUP(E5,CatalogoEmpleados,5,0)","v":123456789},{"$f":"VLOOKUP(FJ5,PERIOD_NOM,2,0)","v":"2016-01-15"},{"$f":"VLOOKUP(FJ5,PERIOD_NOM,3,0)","v":"2016-01-04"},{"$f":"VLOOKUP(FJ5,PERIOD_NOM,4,0)","v":"2016-01-10"},null,{"$f":"IF(VLOOKUP(E5,CatalogoEmpleados,12,0)=0,\"\",VLOOKUP(E5,CatalogoEmpleados,12,0))","v":""},{"$f":"IF(VLOOKUP(E5,CatalogoEmpleados,13,0)=0,\"\",VLOOKUP(E5,CatalogoEmpleados,13,0))","v":"012345678901234567"},{"$f":"IF(VLOOKUP(E5,CatalogoEmpleados,14,0)=0,\"\",VLOOKUP(E5,CatalogoEmpleados,14,0))","v":"02"},{"$f":"IF(VLOOKUP(E5,CatalogoEmpleados,15,0)=0,\"\",VLOOKUP(E5,CatalogoEmpleados,15,0))","v":""},{"$f":"IF(VLOOKUP(E5,CatalogoEmpleados,16,0)=0,\"\",VLOOKUP(E5,CatalogoEmpleados,16,0))","v":100},{"$f":"IF(VLOOKUP(E5,CatalogoEmpleados,17,0)=0,\"\",VLOOKUP(E5,CatalogoEmpleados,17,0))","v":""},{"$f":"IF(VLOOKUP(E5,CatalogoEmpleados,18,0)=0,\"\",VLOOKUP(E5,CatalogoEmpleados,18,0))","v":""},{"$f":"IF(VLOOKUP(E5,CatalogoEmpleados,19,0)=0,\"\",VLOOKUP(E5,CatalogoEmpleados,19,0))","v":"COMPLETA"},{"$f":"PERIODICIDAD","v":"Semanal"},{"$f":"IF(VLOOKUP(E5,CatalogoEmpleados,10,0)=0,\"\",VLOOKUP(E5,CatalogoEmpleados,10,0))","v":99},{"$f":"CODIGORIESGO","v":"1|Clase I"},{"$f":"IF(VLOOKUP(E5,CatalogoEmpleados,11,0)=0,\"\",VLOOKUP(E5,CatalogoEmpleados,11,0))","v":""},null,{"$f":"IF(ISERROR(VLOOKUP(Y5,PERCEPCIONES,3,0)),\"\",VLOOKUP(Y5,PERCEPCIONES,3,0))","v":""},{"$f":"IF(ISERROR(VLOOKUP(Y5,PERCEPCIONES,2,0)),\"\",VLOOKUP(Y5,PERCEPCIONES,2,0))","v":""},null,null,null,{"$f":"IF(ISERROR(VLOOKUP(AD5,PERCEPCIONES,3,0)),\"\",VLOOKUP(AD5,PERCEPCIONES,3,0))","v":""},{"$f":"IF(ISERROR(VLOOKUP(AD5,PERCEPCIONES,2,0)),\"\",VLOOKUP(AD5,PERCEPCIONES,2,0))","v":""},null,null,null,{"$f":"IF(ISERROR(VLOOKUP(AI5,PERCEPCIONES,3,0)),\"\",VLOOKUP(AI5,PERCEPCIONES,3,0))","v":""},{"$f":"IF(ISERROR(VLOOKUP(AI5,PERCEPCIONES,2,0)),\"\",VLOOKUP(AI5,PERCEPCIONES,2,0))","v":""},null,null,null,{"$f":"IF(ISERROR(VLOOKUP(AN5,PERCEPCIONES,3,0)),\"\",VLOOKUP(AN5,PERCEPCIONES,3,0))","v":""},{"$f":"IF(ISERROR(VLOOKUP(AN5,PERCEPCIONES,2,0)),\"\",VLOOKUP(AN5,PERCEPCIONES,2,0))","v":""},null,null,null,{"$f":"IF(ISERROR(VLOOKUP(AS5,PERCEPCIONES,3,0)),\"\",VLOOKUP(AS5,PERCEPCIONES,3,0))","v":""},{"$f":"IF(ISERROR(VLOOKUP(AS5,PERCEPCIONES,2,0)),\"\",VLOOKUP(AS5,PERCEPCIONES,2,0))","v":""},null,null,null,{"$f":"IF(ISERROR(VLOOKUP(AX5,PERCEPCIONES,3,0)),\"\",VLOOKUP(AX5,PERCEPCIONES,3,0))","v":""},{"$f":"IF(ISERROR(VLOOKUP(AX5,PERCEPCIONES,2,0)),\"\",VLOOKUP(AX5,PERCEPCIONES,2,0))","v":""},null,null,null,{"$f":"IF(ISERROR(VLOOKUP(BC5,PERCEPCIONES,3,0)),\"\",VLOOKUP(BC5,PERCEPCIONES,3,0))","v":""},{"$f":"IF(ISERROR(VLOOKUP(BC5,PERCEPCIONES,2,0)),\"\",VLOOKUP(BC5,PERCEPCIONES,2,0))","v":""},null,null,null,{"$f":"IF(ISERROR(VLOOKUP(BH5,PERCEPCIONES,3,0)),\"\",VLOOKUP(BH5,PERCEPCIONES,3,0))","v":""},{"$f":"IF(ISERROR(VLOOKUP(BH5,PERCEPCIONES,2,0)),\"\",VLOOKUP(BH5,PERCEPCIONES,2,0))","v":""},null,null,null,{"$f":"IF(ISERROR(VLOOKUP(BM5,PERCEPCIONES,3,0)),\"\",VLOOKUP(BM5,PERCEPCIONES,3,0))","v":""},{"$f":"IF(ISERROR(VLOOKUP(BM5,PERCEPCIONES,2,0)),\"\",VLOOKUP(BM5,PERCEPCIONES,2,0))","v":""},null,null,null,{"$f":"IF(ISERROR(VLOOKUP(BR5,PERCEPCIONES,3,0)),\"\",VLOOKUP(BR5,PERCEPCIONES,3,0))","v":""},{"$f":"IF(ISERROR(VLOOKUP(BR5,PERCEPCIONES,2,0)),\"\",VLOOKUP(BR5,PERCEPCIONES,2,0))","v":""},null,null,null,{"$f":"IF(ISERROR(VLOOKUP(BW5,PERCEPCIONES,3,0)),\"\",VLOOKUP(BW5,PERCEPCIONES,3,0))","v":""},{"$f":"IF(ISERROR(VLOOKUP(BW5,PERCEPCIONES,2,0)),\"\",VLOOKUP(BW5,PERCEPCIONES,2,0))","v":""},null,null,null,{"$f":"IF(ISERROR(VLOOKUP(CB5,PERCEPCIONES,3,0)),\"\",VLOOKUP(CB5,PERCEPCIONES,3,0))","v":""},{"$f":"IF(ISERROR(VLOOKUP(CB5,PERCEPCIONES,2,0)),\"\",VLOOKUP(CB5,PERCEPCIONES,2,0))","v":""},null,null,null,{"$f":"IF(ISERROR(VLOOKUP(CG5,DEDUCCIONES,3,0)),\"\",VLOOKUP(CG5,DEDUCCIONES,3,0))","v":""},{"$f":"IF(ISERROR(VLOOKUP(CG5,DEDUCCIONES,2,0)),\"\",VLOOKUP(CG5,DEDUCCIONES,2,0))","v":""},null,null,null,{"$f":"IF(ISERROR(VLOOKUP(CL5,DEDUCCIONES,3,0)),\"\",VLOOKUP(CL5,DEDUCCIONES,3,0))","v":""},{"$f":"IF(ISERROR(VLOOKUP(CL5,DEDUCCIONES,2,0)),\"\",VLOOKUP(CL5,DEDUCCIONES,2,0))","v":""},null,null,null,{"$f":"IF(ISERROR(VLOOKUP(CQ5,DEDUCCIONES,3,0)),\"\",VLOOKUP(CQ5,DEDUCCIONES,3,0))","v":""},{"$f":"IF(ISERROR(VLOOKUP(CQ5,DEDUCCIONES,2,0)),\"\",VLOOKUP(CQ5,DEDUCCIONES,2,0))","v":""},null,null,null,{"$f":"IF(ISERROR(VLOOKUP(CV5,DEDUCCIONES,3,0)),\"\",VLOOKUP(CV5,DEDUCCIONES,3,0))","v":""},{"$f":"IF(ISERROR(VLOOKUP(CV5,DEDUCCIONES,2,0)),\"\",VLOOKUP(CV5,DEDUCCIONES,2,0))","v":""},null,null,null,{"$f":"IF(ISERROR(VLOOKUP(DA5,DEDUCCIONES,3,0)),\"\",VLOOKUP(DA5,DEDUCCIONES,3,0))","v":""},{"$f":"IF(ISERROR(VLOOKUP(DA5,DEDUCCIONES,2,0)),\"\",VLOOKUP(DA5,DEDUCCIONES,2,0))","v":""},null,null,null,{"$f":"IF(ISERROR(VLOOKUP(DF5,DEDUCCIONES,3,0)),\"\",VLOOKUP(DF5,DEDUCCIONES,3,0))","v":""},{"$f":"IF(ISERROR(VLOOKUP(DF5,DEDUCCIONES,2,0)),\"\",VLOOKUP(DF5,DEDUCCIONES,2,0))","v":""},null,null,null,{"$f":"IF(ISERROR(VLOOKUP(DK5,DEDUCCIONES,3,0)),\"\",VLOOKUP(DK5,DEDUCCIONES,3,0))","v":""},{"$f":"IF(ISERROR(VLOOKUP(DK5,DEDUCCIONES,2,0)),\"\",VLOOKUP(DK5,DEDUCCIONES,2,0))","v":""},null,null,null,{"$f":"IF(ISERROR(VLOOKUP(DP5,DEDUCCIONES,3,0)),\"\",VLOOKUP(DP5,DEDUCCIONES,3,0))","v":""},{"$f":"IF(ISERROR(VLOOKUP(DP5,DEDUCCIONES,2,0)),\"\",VLOOKUP(DP5,DEDUCCIONES,2,0))","v":""},null,null,null,{"$f":"IF(ISERROR(VLOOKUP(DU5,DEDUCCIONES,3,0)),\"\",VLOOKUP(DU5,DEDUCCIONES,3,0))","v":""},{"$f":"IF(ISERROR(VLOOKUP(DU5,DEDUCCIONES,2,0)),\"\",VLOOKUP(DU5,DEDUCCIONES,2,0))","v":""},null,null,null,{"$f":"IF(ISERROR(VLOOKUP(DZ5,DEDUCCIONES,3,0)),\"\",VLOOKUP(DZ5,DEDUCCIONES,3,0))","v":""},{"$f":"IF(ISERROR(VLOOKUP(DZ5,DEDUCCIONES,2,0)),\"\",VLOOKUP(DZ5,DEDUCCIONES,2,0))","v":""},null,null,null,{"$f":"IF(ISERROR(VLOOKUP(EE5,DEDUCCIONES,3,0)),\"\",VLOOKUP(EE5,DEDUCCIONES,3,0))","v":""},{"$f":"IF(ISERROR(VLOOKUP(EE5,DEDUCCIONES,2,0)),\"\",VLOOKUP(EE5,DEDUCCIONES,2,0))","v":""},null,null,null,{"$f":"IF(ISERROR(VLOOKUP(EJ5,DEDUCCIONES,3,0)),\"\",VLOOKUP(EJ5,DEDUCCIONES,3,0))","v":""},{"$f":"IF(ISERROR(VLOOKUP(EJ5,DEDUCCIONES,2,0)),\"\",VLOOKUP(EJ5,DEDUCCIONES,2,0))","v":""},null,null,null,null,null,null,null,null,null,null,null,null,null,null,null,null,null,null,null,{"$f":"VLOOKUP(E5,CatalogoEmpleados,2,0)","v":"ROSITA FLORES"},{"$f":"VLOOKUP(E5,CatalogoEmpleados,3,0)","v":"XAXX9900999X9"},{"$f":"VLOOKUP(E5,CatalogoEmpleados,7,0)","v":"99999"},{"$f":"VLOOKUP(E5,CatalogoEmpleados,8,0)","v":"MEXICO"},{"$f":"PERIODONOMINA","v":1},{"$f":"VLOOKUP(E5,CatalogoEmpleados,9,0)","v":"ejemplo@dominio.com"},null,null,null,{"$f":"VLOOKUP(FM5,COD_METODO_PAGO,2,0)","v":"Otros"}]

{"sheet":"Plantilla (Original)","index":4,"n_rows":3,"n_cols":171,"rows_kept":3,"cut":false,"hidden":true,"merged":[]}
[null,null,null,null,null,null,null,null,null,null,null,null,null,null,null,null,null,null,null,null,null,null,null,null,null,null,null,null,null,null,null,null,null,null,null,null,null,null,null,null,null,null,null,null,null,null,null,null,null,null,null,null,null,null,null,null,null,null,null,null,null,null,null,null,null,null,null,null,null,null,null,null,null,null,null,null,null,null,null,null,null,null,null,null,null,null,null,null,null,null,null,null,null,null,null,null,null,null,null,null,null,null,null,null,null,null,null,null,null,null,null,null,null,null,null,null,null,null,null,null,null,null,null,null,null,null,null,null,null,null,null,null,null,null,null,null,null,null,null,null,null,null,null,null,null,null,null,null,null,null,null,null,null,null,null,null,null,null,null,null,null,null,null,null,null,null,null,null,null,null,"DESCRI"]
["RFC DEL EMISOR","Nº FOLIO INTERNO DE RECIBO"," VERSION ","REGISTRO PATRONAL","CÓDIGO EMPLEADO","CURP","CÓDIGO TIPO DE RÉGIMEN","NSS IMSS","FECHA DE PAGO","FECHA INICIAL PERIODO DE NOMINA","FECHA FINAL PERIODO DE NOMINA","NUMERO DE DIAS PAGADOS","DEPARTAMENTO","CLABE INTERBANCARIA","CÓDIGO DE BANCO","FECHA INICIO RELACIÓN LABORAL","Nº SEMANAS ANTIGÜEDAD","PUESTO","TIPO DE CONTRATO","TIPO DE JORNADA","PERIODICIDAD DEL PAGO","SALARIO BASE","CÓDIGO RIESGO","SALARIO DIARIO INTEGRADO","CÓDIGO PERCEPCIÓN SAT","CÓDIGO PERCEPCIÓN INTERNO","CONCEPTO PERCEPCIÓN","MONTO DE LA PERCEPCIÓN GRAVABLE","MONTO DE LA PERCEPCIÓN EXENTA","CÓDIGO PERCEPCIÓN SAT","CÓDIGO PERCEPCIÓN INTERNO","CONCEPTO PERCEPCIÓN","MONTO DE LA PERCEPCIÓN GRAVABLE","MONTO DE LA PERCEPCIÓN EXENTA","CÓDIGO PERCEPCIÓN SAT","CÓDIGO PERCEPCIÓN INTERNO","CONCEPTO PERCEPCIÓN","MONTO DE LA PERCEPCIÓN GRAVABLE","MONTO DE LA PERCEPCIÓN EXENTA","CÓDIGO PERCEPCIÓN SAT","CÓDIGO PERCEPCIÓN INTERNO","CONCEPTO PERCEPCIÓN","MONTO DE LA PERCEPCIÓN GRAVABLE","MONTO DE LA PERCEPCIÓN EXENTA","CÓDIGO PERCEPCIÓN SAT","CÓDIGO PERCEPCIÓN INTERNO","CONCEPTO PERCEPCIÓN","MONTO DE LA PERCEPCIÓN GRAVABLE","MONTO DE LA PERCEPCIÓN EXENTA","CÓDIGO PERCEPCIÓN SAT","CÓDIGO PERCEPCIÓN INTERNO","CONCEPTO PERCEPCIÓN","MONTO DE LA PERCEPCIÓN GRAVABLE","MONTO DE LA PERCEPCIÓN EXENTA","CÓDIGO PERCEPCIÓN SAT","CÓDIGO PERCEPCIÓN INTERNO","CONCEPTO PERCEPCIÓN","MONTO DE LA PERCEPCIÓN GRAVABLE","MONTO DE LA PERCEPCIÓN EXENTA","CÓDIGO PERCEPCIÓN SAT","CÓDIGO PERCEPCIÓN INTERNO","CONCEPTO PERCEPCIÓN","MONTO DE LA PERCEPCIÓN GRAVABLE","MONTO DE LA PERCEPCIÓN EXENTA","CÓDIGO PERCEPCIÓN SAT","CÓDIGO PERCEPCIÓN INTERNO","CONCEPTO PERCEPCIÓN","MONTO DE LA PERCEPCIÓN GRAVABLE","MONTO DE LA PERCEPCIÓN EXENTA","CÓDIGO PERCEPCIÓN SAT","CÓDIGO PERCEPCIÓN INTERNO","CONCEPTO PERCEPCIÓN","MONTO DE LA PERCEPCIÓN GRAVABLE","MONTO DE LA PERCEPCIÓN EXENTA","CÓDIGO PERCEPCIÓN SAT","CÓDIGO PERCEPCIÓN INTERNO","CONCEPTO PERCEPCIÓN","MONTO DE LA PERCEPCIÓN GRAVABLE","MONTO DE LA PERCEPCIÓN EXENTA","CÓDIGO PERCEPCIÓN SAT","CÓDIGO PERCEPCIÓN INTERNO","CONCEPTO PERCEPCIÓN","MONTO DE LA PERCEPCIÓN GRAVABLE","MONTO DE LA PERCEPCIÓN EXENTA","CÓDIGO DEDUCCIÓN SAT","CÓDIGO DEDUCCIÓN INTERNO","CONCEPTO DEDUCCIÓN","MONTO DE LA DEDUCCIÓN GRAVABLE","MONTO DE LA DEDUCCIÓN EXENTA","CÓDIGO DEDUCCIÓN SAT","CÓDIGO DEDUCCIÓN INTERNO","CONCEPTO DEDUCCIÓN","MONTO DE LA DEDUCCIÓN GRAVABLE","MONTO DE LA DEDUCCIÓN EXENTA","CÓDIGO DEDUCCIÓN SAT","CÓDIGO DEDUCCIÓN INTERNO","CONCEPTO DEDUCCIÓN","MONTO DE LA DEDUCCIÓN GRAVABLE","MONTO DE LA DEDUCCIÓN EXENTA","CÓDIGO DEDUCCIÓN SAT","CÓDIGO DEDUCCIÓN INTERNO","CONCEPTO DEDUCCIÓN","MONTO DE LA DEDUCCIÓN GRAVABLE","MONTO DE LA DEDUCCIÓN EXENTA","CÓDIGO DEDUCCIÓN SAT","CÓDIGO DEDUCCIÓN INTERNO","CONCEPTO DEDUCCIÓN","MONTO DE LA DEDUCCIÓN GRAVABLE","MONTO DE LA DEDUCCIÓN EXENTA","CÓDIGO DEDUCCIÓN SAT","CÓDIGO DEDUCCIÓN INTERNO","CONCEPTO DEDUCCIÓN","MONTO DE LA DEDUCCIÓN GRAVABLE","MONTO DE LA DEDUCCIÓN EXENTA","CÓDIGO DEDUCCIÓN SAT","CÓDIGO DEDUCCIÓN INTERNO","CONCEPTO DEDUCCIÓN","MONTO DE LA DEDUCCIÓN GRAVABLE","MONTO DE LA DEDUCCIÓN EXENTA","CÓDIGO DEDUCCIÓN SAT","CÓDIGO DEDUCCIÓN INTERNO","CONCEPTO DEDUCCIÓN","MONTO DE LA DEDUCCIÓN GRAVABLE","MONTO DE LA DEDUCCIÓN EXENTA","CÓDIGO DEDUCCIÓN SAT","CÓDIGO DEDUCCIÓN INTERNO","CONCEPTO DEDUCCIÓN","MONTO DE LA DEDUCCIÓN GRAVABLE","MONTO DE LA DEDUCCIÓN EXENTA","CÓDIGO DEDUCCIÓN SAT","CÓDIGO DEDUCCIÓN INTERNO","CONCEPTO DEDUCCIÓN","MONTO DE LA DEDUCCIÓN GRAVABLE","MONTO DE LA DEDUCCIÓN EXENTA","CÓDIGO DEDUCCIÓN SAT","CÓDIGO DEDUCCIÓN INTERNO","CONCEPTO DEDUCCIÓN","MONTO DE LA DEDUCCIÓN GRAVABLE","MONTO DE LA DEDUCCIÓN EXENTA","CÓDIGO DEDUCCIÓN SAT","CÓDIGO DEDUCCIÓN INTERNO","CONCEPTO DEDUCCIÓN","MONTO DE LA DEDUCCIÓN GRAVABLE","MONTO DE LA DEDUCCIÓN EXENTA","Nº DIAS DE INCAPACIDAD","CÓDIGO TIPO INCAPACIDAD","MONTO INCAPACIDAD","Nº DIAS DE INCAPACIDAD","CÓDIGO TIPO INCAPACIDAD","MONTO INCAPACIDAD","Nº DIAS DE INCAPACIDAD","CÓDIGO TIPO INCAPACIDAD","MONTO INCAPACIDAD","Nº DIAS QUE EL TRABAJOR REALIZÓ HRS EXTRAS","TIPO DE HORAS EXTRAS","Nº HORAS EXTRAS","MONTO TIEMPO EXTRA","Nº DIAS QUE EL TRABAJOR REALIZÓ HRS EXTRAS","TIPO DE HORAS EXTRAS","Nº HORAS EXTRAS","MONTO TIEMPO EXTRA","NOMBRE","RFC DEL RECEPTOR","CÓDIGO POSTAL DOMICILIO","PAIS","CODIGO NÓMINA","MAIL 1","MAIL 2","Metodo de Pago","Cuenta Bancaria del Pago"]
[{"$f":"RFCEMISOR","v":"XAXX010101000"},null,{"$f":"VERSION","v":1.1000000000000001},{"$f":"REGISTROPATRONAL","v":"A9990009900"},{"$f":"Trabajadores!A3","v":1},{"$f":"IF(VLOOKUP(E3,CatalogoEmpleados,4,0)=0,\"\",VLOOKUP(E3,CatalogoEmpleados,4,0))","v":"XAXX010101XXXXXX05"},{"$f":"VLOOKUP(E3,CatalogoEmpleados,6,0)","v":"02| Sueldos y salarios"},{"$f":"VLOOKUP(E3,CatalogoEmpleados,5,0)","v":123456789},{"$f":"VLOOKUP(FJ3,PERIOD_NOM,2,0)","v":"2016-01-15"},{"$f":"VLOOKUP(FJ3,PERIOD_NOM,3,0)","v":"2016-01-04"},{"$f":"VLOOKUP(FJ3,PERIOD_NOM,4,0)","v":"2016-01-10"},null,{"$f":"IF(VLOOKUP(E3,CatalogoEmpleados,12,0)=0,\"\",VLOOKUP(E3,CatalogoEmpleados,12,0))","v":""},{"$f":"IF(VLOOKUP(E3,CatalogoEmpleados,13,0)=0,\"\",VLOOKUP(E3,CatalogoEmpleados,13,0))","v":"012345678901234567"},{"$f":"IF(VLOOKUP(E3,CatalogoEmpleados,14,0)=0,\"\",VLOOKUP(E3,CatalogoEmpleados,14,0))","v":"02"},{"$f":"IF(VLOOKUP(E3,CatalogoEmpleados,15,0)=0,\"\",VLOOKUP(E3,CatalogoEmpleados,15,0))","v":""},{"$f":"IF(VLOOKUP(E3,CatalogoEmpleados,16,0)=0,\"\",VLOOKUP(E3,CatalogoEmpleados,16,0))","v":100},{"$f":"IF(VLOOKUP(E3,CatalogoEmpleados,17,0)=0,\"\",VLOOKUP(E3,CatalogoEmpleados,17,0))","v":""},{"$f":"IF(VLOOKUP(E3,CatalogoEmpleados,18,0)=0,\"\",VLOOKUP(E3,CatalogoEmpleados,18,0))","v":""},{"$f":"IF(VLOOKUP(E3,CatalogoEmpleados,19,0)=0,\"\",VLOOKUP(E3,CatalogoEmpleados,19,0))","v":"COMPLETA"},{"$f":"PERIODICIDAD","v":"Semanal"},{"$f":"IF(VLOOKUP(E3,CatalogoEmpleados,10,0)=0,\"\",VLOOKUP(E3,CatalogoEmpleados,10,0))","v":99},{"$f":"CODIGORIESGO","v":"1|Clase I"},{"$f":"IF(VLOOKUP(E3,CatalogoEmpleados,11,0)=0,\"\",VLOOKUP(E3,CatalogoEmpleados,11,0))","v":""},null,{"$f":"IF(ISERROR(VLOOKUP(Y3,PERCEPCIONES,3,0)),\"\",VLOOKUP(Y3,PERCEPCIONES,3,0))","v":""},{"$f":"IF(ISERROR(VLOOKUP(Y3,PERCEPCIONES,2,0)),\"\",VLOOKUP(Y3,PERCEPCIONES,2,0))","v":""},null,null,null,{"$f":"IF(ISERROR(VLOOKUP(AD3,PERCEPCIONES,3,0)),\"\",VLOOKUP(AD3,PERCEPCIONES,3,0))","v":""},{"$f":"IF(ISERROR(VLOOKUP(AD3,PERCEPCIONES,2,0)),\"\",VLOOKUP(AD3,PERCEPCIONES,2,0))","v":""},null,null,null,{"$f":"IF(ISERROR(VLOOKUP(AI3,PERCEPCIONES,3,0)),\"\",VLOOKUP(AI3,PERCEPCIONES,3,0))","v":""},{"$f":"IF(ISERROR(VLOOKUP(AI3,PERCEPCIONES,2,0)),\"\",VLOOKUP(AI3,PERCEPCIONES,2,0))","v":""},null,null,null,{"$f":"IF(ISERROR(VLOOKUP(AN3,PERCEPCIONES,3,0)),\"\",VLOOKUP(AN3,PERCEPCIONES,3,0))","v":""},{"$f":"IF(ISERROR(VLOOKUP(AN3,PERCEPCIONES,2,0)),\"\",VLOOKUP(AN3,PERCEPCIONES,2,0))","v":""},null,null,null,{"$f":"IF(ISERROR(VLOOKUP(AS3,PERCEPCIONES,3,0)),\"\",VLOOKUP(AS3,PERCEPCIONES,3,0))","v":""},{"$f":"IF(ISERROR(VLOOKUP(AS3,PERCEPCIONES,2,0)),\"\",VLOOKUP(AS3,PERCEPCIONES,2,0))","v":""},null,null,null,{"$f":"IF(ISERROR(VLOOKUP(AX3,PERCEPCIONES,3,0)),\"\",VLOOKUP(AX3,PERCEPCIONES,3,0))","v":""},{"$f":"IF(ISERROR(VLOOKUP(AX3,PERCEPCIONES,2,0)),\"\",VLOOKUP(AX3,PERCEPCIONES,2,0))","v":""},null,null,null,{"$f":"IF(ISERROR(VLOOKUP(BC3,PERCEPCIONES,3,0)),\"\",VLOOKUP(BC3,PERCEPCIONES,3,0))","v":""},{"$f":"IF(ISERROR(VLOOKUP(BC3,PERCEPCIONES,2,0)),\"\",VLOOKUP(BC3,PERCEPCIONES,2,0))","v":""},null,null,null,{"$f":"IF(ISERROR(VLOOKUP(BH3,PERCEPCIONES,3,0)),\"\",VLOOKUP(BH3,PERCEPCIONES,3,0))","v":""},{"$f":"IF(ISERROR(VLOOKUP(BH3,PERCEPCIONES,2,0)),\"\",VLOOKUP(BH3,PERCEPCIONES,2,0))","v":""},null,null,null,{"$f":"IF(ISERROR(VLOOKUP(BM3,PERCEPCIONES,3,0)),\"\",VLOOKUP(BM3,PERCEPCIONES,3,0))","v":""},{"$f":"IF(ISERROR(VLOOKUP(BM3,PERCEPCIONES,2,0)),\"\",VLOOKUP(BM3,PERCEPCIONES,2,0))","v":""},null,null,null,{"$f":"IF(ISERROR(VLOOKUP(BR3,PERCEPCIONES,3,0)),\"\",VLOOKUP(BR3,PERCEPCIONES,3,0))","v":""},{"$f":"IF(ISERROR(VLOOKUP(BR3,PERCEPCIONES,2,0)),\"\",VLOOKUP(BR3,PERCEPCIONES,2,0))","v":""},null,null,null,{"$f":"IF(ISERROR(VLOOKUP(BW3,PERCEPCIONES,3,0)),\"\",VLOOKUP(BW3,PERCEPCIONES,3,0))","v":""},{"$f":"IF(ISERROR(VLOOKUP(BW3,PERCEPCIONES,2,0)),\"\",VLOOKUP(BW3,PERCEPCIONES,2,0))","v":""},null,null,null,{"$f":"IF(ISERROR(VLOOKUP(CB3,PERCEPCIONES,3,0)),\"\",VLOOKUP(CB3,PERCEPCIONES,3,0))","v":""},{"$f":"IF(ISERROR(VLOOKUP(CB3,PERCEPCIONES,2,0)),\"\",VLOOKUP(CB3,PERCEPCIONES,2,0))","v":""},null,null,null,{"$f":"IF(ISERROR(VLOOKUP(CG3,DEDUCCIONES,3,0)),\"\",VLOOKUP(CG3,DEDUCCIONES,3,0))","v":""},{"$f":"IF(ISERROR(VLOOKUP(CG3,DEDUCCIONES,2,0)),\"\",VLOOKUP(CG3,DEDUCCIONES,2,0))","v":""},null,null,null,{"$f":"IF(ISERROR(VLOOKUP(CL3,DEDUCCIONES,3,0)),\"\",VLOOKUP(CL3,DEDUCCIONES,3,0))","v":""},{"$f":"IF(ISERROR(VLOOKUP(CL3,DEDUCCIONES,2,0)),\"\",VLOOKUP(CL3,DEDUCCIONES,2,0))","v":""},null,null,null,{"$f":"IF(ISERROR(VLOOKUP(CQ3,DEDUCCIONES,3,0)),\"\",VLOOKUP(CQ3,DEDUCCIONES,3,0))","v":""},{"$f":"IF(ISERROR(VLOOKUP(CQ3,DEDUCCIONES,2,0)),\"\",VLOOKUP(CQ3,DEDUCCIONES,2,0))","v":""},null,null,null,{"$f":"IF(ISERROR(VLOOKUP(CV3,DEDUCCIONES,3,0)),\"\",VLOOKUP(CV3,DEDUCCIONES,3,0))","v":""},{"$f":"IF(ISERROR(VLOOKUP(CV3,DEDUCCIONES,2,0)),\"\",VLOOKUP(CV3,DEDUCCIONES,2,0))","v":""},null,null,null,{"$f":"IF(ISERROR(VLOOKUP(DA3,DEDUCCIONES,3,0)),\"\",VLOOKUP(DA3,DEDUCCIONES,3,0))","v":""},{"$f":"IF(ISERROR(VLOOKUP(DA3,DEDUCCIONES,2,0)),\"\",VLOOKUP(DA3,DEDUCCIONES,2,0))","v":""},null,null,null,{"$f":"IF(ISERROR(VLOOKUP(DF3,DEDUCCIONES,3,0)),\"\",VLOOKUP(DF3,DEDUCCIONES,3,0))","v":""},{"$f":"IF(ISERROR(VLOOKUP(DF3,DEDUCCIONES,2,0)),\"\",VLOOKUP(DF3,DEDUCCIONES,2,0))","v":""},null,null,null,{"$f":"IF(ISERROR(VLOOKUP(DK3,DEDUCCIONES,3,0)),\"\",VLOOKUP(DK3,DEDUCCIONES,3,0))","v":""},{"$f":"IF(ISERROR(VLOOKUP(DK3,DEDUCCIONES,2,0)),\"\",VLOOKUP(DK3,DEDUCCIONES,2,0))","v":""},null,null,null,{"$f":"IF(ISERROR(VLOOKUP(DP3,DEDUCCIONES,3,0)),\"\",VLOOKUP(DP3,DEDUCCIONES,3,0))","v":""},{"$f":"IF(ISERROR(VLOOKUP(DP3,DEDUCCIONES,2,0)),\"\",VLOOKUP(DP3,DEDUCCIONES,2,0))","v":""},null,null,null,{"$f":"IF(ISERROR(VLOOKUP(DU3,DEDUCCIONES,3,0)),\"\",VLOOKUP(DU3,DEDUCCIONES,3,0))","v":""},{"$f":"IF(ISERROR(VLOOKUP(DU3,DEDUCCIONES,2,0)),\"\",VLOOKUP(DU3,DEDUCCIONES,2,0))","v":""},null,null,null,{"$f":"IF(ISERROR(VLOOKUP(DZ3,DEDUCCIONES,3,0)),\"\",VLOOKUP(DZ3,DEDUCCIONES,3,0))","v":""},{"$f":"IF(ISERROR(VLOOKUP(DZ3,DEDUCCIONES,2,0)),\"\",VLOOKUP(DZ3,DEDUCCIONES,2,0))","v":""},null,null,null,{"$f":"IF(ISERROR(VLOOKUP(EE3,DEDUCCIONES,3,0)),\"\",VLOOKUP(EE3,DEDUCCIONES,3,0))","v":""},{"$f":"IF(ISERROR(VLOOKUP(EE3,DEDUCCIONES,2,0)),\"\",VLOOKUP(EE3,DEDUCCIONES,2,0))","v":""},null,null,null,{"$f":"IF(ISERROR(VLOOKUP(EJ3,DEDUCCIONES,3,0)),\"\",VLOOKUP(EJ3,DEDUCCIONES,3,0))","v":""},{"$f":"IF(ISERROR(VLOOKUP(EJ3,DEDUCCIONES,2,0)),\"\",VLOOKUP(EJ3,DEDUCCIONES,2,0))","v":""},null,null,null,null,null,null,null,null,null,null,null,null,null,null,null,null,null,null,null,{"$f":"VLOOKUP(E3,CatalogoEmpleados,2,0)","v":"ROSITA FLORES"},{"$f":"VLOOKUP(E3,CatalogoEmpleados,3,0)","v":"XAXX9900999X9"},{"$f":"VLOOKUP(E3,CatalogoEmpleados,7,0)","v":"99999"},{"$f":"VLOOKUP(E3,CatalogoEmpleados,8,0)","v":"MEXICO"},{"$f":"PERIODONOMINA","v":1},{"$f":"VLOOKUP(E3,CatalogoEmpleados,9,0)","v":"ejemplo@dominio.com"},null,null,null,{"$f":"VLOOKUP(FM3,COD_METODO_PAGO,2,0)","v":"Otros"}]